Cogmind - Beta 17.1 @@@ ROGUE MODE // 2026.09.20 @ 02:42:18 Player: H3-MLN Result: Escaped singularity! Performance ------------- Evolutions (9) 4500 Regions Visited (37) 7400 Robots Destroyed (550) 2750 Value Destroyed (27884) 27884 Prototype IDs (396) 7920 Alien Tech Used (8) 1600 Bonus (62887) 62887 TOTAL SCORE: 114941 Bonus ------- High Alert Combat Kills 4770 Follower Combat Kills 3250 Hunted by Unchained 2000 Destroyed Unchained 3000 Entered Garrisons 600 Used RIF Installer 2500 Aligned with FarCom 300 Met Zhirov 300 Used Core Reset Matrix 3000 Acquired SGEMP 2000 Delivered SGEMP 2000 Destroyed MAIN.C Guards 500 Met MAIN.C 5000 Destroyed MAIN.C Shell 5000 Destroyed MAIN.C 10000 Met Architect 300 Destroyed A8 300 Destroyed A6 400 Destroyed A5 500 Destroyed Architect 15000 Win 3000 Friendly Fire -833 Cogmind --------- Core Integrity 209/1600 Matter 290/300 Energy 98/100 System Corruption 3% Temperature Cool (0) Movement Core (50) Location Near Former Tau Ceti IV Parts ------- > --- POWER (2) -------- (None) > --- PROPULSION (8) --- (None) > --- UTILITY (13) ----- (None) > --- WEAPON (2) ------- (None) > --- INVENTORY (5) ---- Zero-point Reactor Biometal Heavy Treads Concept NT7 Matterbank (322) Concept Miniperforator Peak State ------------ > --- POWER ------------ Experimental Antimatter Reactor Concept Zero-point Core > --- PROPULSION ------- Experimental Antigrav System Gravjet Array Gravjet Array Gravjet Array Concept Combat Aerolev Unit > --- UTILITY ---------- Concept Antigrav Storage Unit Experimental Active Sensor Suite Concept Melee Reflex Suite Concept Weapon Articulator Concept Core Analysis Suite Experimental Armor Integrity Analyzer Experimental Transmission Jammer Experimental Reaction Control System Concept Cloak Mesh Concept Cloak Mesh Deep Network Scanner Concept Network Penetrator > --- WEAPON ----------- Concept Plasma Driver Experimental Jetlance > --- INVENTORY -------- Concept Zero-point Core Concept Thermoelectric Network Concept Chromion Battery Concept NT7 Matterbank Concept Core Analysis Suite Experimental Weapon Cycler Femtoactuators Femtoactuators Experimental Force Booster Concept Reaction Jets Advanced Powered Armor Concept RG22 Armor Experimental Force Field Deep Network Scanner Transdimensional Reconstructor Transdimensional Reconstructor Subatomic Replicator Concept Plasma Driver Concept Plasma Driver Concept Plasma Driver Concept Miniperforator Concept Miniperforator Concept EMP Blanket Launcher Concept EMP Blanket Launcher Experimental Jetlance [Rating: 300] Favorites ----------- Power Concept Zero-point Core Engine Improved Ion Engine Power Core Concept Zero-point Core Reactor Hybrid Antimatter Reactor Propulsion Cooled Gravmag System Treads Light Treads Leg Potential Leg Wheel Wheel Hover Unit Cooled Gravmag System Flight Unit Nuclear Pulse Thruster Utility High-capacity Storage Unit Device Advanced Transmission Jammer Storage High-capacity Storage Unit Processor Experimental Armor Integrity Analyzer Hackware Hacking Suite Protection Light Armor Plating Weapon Concept Plasma Driver Energy Gun Pulse Rifle Energy Cannon Concept Plasma Driver Ballistic Gun Heavy Assault Rifle Ballistic Cannon Concept Miniperforator Launcher Grenade Launcher Special Weapon Remote Datajack Impact Weapon Thunder Hammer Slashing Weapon Chainsword Piercing Weapon Experimental Jetlance Special Melee Weapon Advanced Datajack Build | -11 -10 -10 -9 -9 -9 -8 -8 -8 -8 -8 -7 -7 -7 -7 -7 -6 -6 -6 -6 -5 -5 -5 -5 -4 -4 -4 -4 -4 -4 -3 -3 -2 -2 -2 -1 -1 -1 ------- Run | Yrd Mat Min Mat Min Exi Min Mat Gar Mat Gar Fac Was Fac Low Low Fac Was Fac Gar Fac Upp Upp Zhi Pro Fac Was Fac Arm Lab Res Tes Res Qua Frg Acc Com Ac0 Slots Evolved 18 | . . . 2 . . . 2 . . . 2 . . . . 2 . . . 2 . . . . 2 . . . . 2 . 2 . . 2 . . Power 1 | . . . . . . . . . . . . . . . . 1 . . . . . . . . . . . . . . . . . . . . . Propulsion 6 | . . . 1 . . . 1 . . . 1 . . . . 1 . . . 1 . . . . . . . . . 1 . . . . . . . Utility 11 | . . . 1 . . . 1 . . . 1 . . . . . . . . 1 . . . . 2 . . . . 1 . 2 . . 2 . . Weapon . | . . . . . . . . . . . . . . . . . . . . . . . . . . . . . . . . . . . . . . Parts Attached 438 | 7 3 1 21 2 17 11 16 5 11 9 18 2 30 2 . 30 3 6 5 7 . 1 2 1 9 . 10 4 . 29 33 14 28 41 19 27 14 Power 47 | 1 . . 2 . 4 . 1 . . 1 1 2 4 . . 9 . . 1 1 . . 1 . . . . 1 . 4 3 3 2 4 . 1 1 Engine 17 | 1 . . 2 . 2 . . . . . . . 3 . . 7 . . . 1 . . . . . . . . . . . 1 . . . . . Core 8 | . . . . . 1 . . . . . 1 . 1 . . . . . 1 . . . . . . . . . . 1 . . 1 1 . 1 . Reactor 22 | . . . . . 1 . 1 . . 1 . 2 . . . 2 . . . . . . 1 . . . . 1 . 3 3 2 1 3 . . 1 Propulsion 106 | 2 1 . 4 . 5 5 7 1 4 2 7 . 5 . . 9 1 4 2 2 . . . . 3 . 2 . . 8 6 4 3 6 1 11 1 Treads 33 | 2 . . 4 . 5 3 6 1 2 2 1 . . . . . . . . . . . . . . . . . . . . . 1 . . 5 1 Leg 5 | . . . . . . 2 1 . 1 . . . . . . 1 . . . . . . . . . . . . . . . . . . . . . Wheel 5 | . 1 . . . . . . . 1 . . . . . . . . . . . . . . . . . . . . . . . . . . 3 . Hover 45 | . . . . . . . . . . . 6 . 5 . . 3 . . . . . . . . 1 . . . . 8 6 4 2 6 1 3 . Flight 18 | . . . . . . . . . . . . . . . . 5 1 4 2 2 . . . . 2 . 2 . . . . . . . . . . Utility 196 | 2 1 . 5 1 5 4 3 2 5 5 8 . 10 2 . 8 2 1 2 2 . . 1 1 5 . 7 . . 14 18 5 20 20 16 13 8 Device 78 | 1 . . . . 2 2 1 . 2 . . . 4 . . 4 2 . . . . . . . 2 . 3 . . 6 7 4 13 11 7 5 2 Storage 15 | 1 1 . 1 . . . . . . 1 1 . . . . 1 . . . . . . 1 . . . 2 . . 1 3 . . 2 . . . Processor 26 | . . . . . 1 . . . . . 3 . . . . 2 . 1 . . . . . 1 2 . . . . . 2 . 2 3 3 3 3 Hackware 38 | . . . 2 . 1 . 1 1 2 3 3 . 3 1 . 1 . . 2 2 . . . . 1 . 2 . . 5 3 . 1 . 4 . . Protection 39 | . . . 2 1 1 2 1 1 1 1 1 . 3 1 . . . . . . . . . . . . . . . 2 3 1 4 4 2 5 3 Artifact . | . . . . . . . . . . . . . . . . . . . . . . . . . . . . . . . . . . . . . . Weapon 89 | 2 1 1 10 1 3 2 5 2 2 1 2 . 11 . . 4 . 1 . 2 . 1 . . 1 . 1 3 . 3 6 2 3 11 2 2 4 Energy Gun 12 | 1 . . 3 . . . 1 . . . . . 1 . . . . . . . . . . . . . . . . . 1 . . 5 . . . Energy Cannon 13 | . . . 1 . . . . . . . . . 1 . . 1 . . . . . . . . . . . . . . 1 2 . 2 1 1 3 Ballistic Gun 15 | 1 1 1 3 . 1 1 4 . . 1 . . . . . . . . . . . . . . . . . 1 . . 1 . . . . . . Ballistic Cannon 6 | . . . 2 . . . . . . . . . . . . . . . . . . . . . . . . . . . . . 2 1 . . 1 Launcher 14 | . . . 1 1 . . . . . . . . 3 . . 2 . 1 . . . . . . . . . 2 . 1 1 . . 1 . 1 . Special Weapon 9 | . . . . . . . . 1 . . 2 . 1 . . . . . . 1 . . . . . . 1 . . . 2 . . . 1 . . Impact Weapon 4 | . . . . . . 1 . . . . . . 2 . . . . . . . . . . . . . . . . . . . 1 . . . . Slashing Weapon 8 | . . . . . 1 . . . 2 . . . 1 . . 1 . . . 1 . 1 . . . . . . . 1 . . . . . . . Piercing Weapon 5 | . . . . . . . . . . . . . 2 . . . . . . . . . . . . . . . . 1 . . . 2 . . . Special Melee Weapon 3 | . . . . . 1 . . 1 . . . . . . . . . . . . . . . . 1 . . . . . . . . . . . . Unidentified Prototypes 68 | . . . 1 . . 2 . . . . 1 . 7 . . 7 . 1 . 1 . . 2 . . . 2 2 . 5 9 . 13 9 6 . . Corrupted Parts 4 | . . . . . . . . . . . . . . . . . . . . . . . . . . . . . . . . . . . . 4 . System Corruption 35 | . . . . . . . . . . . . . . . . . . . . . . . . . . . . . . . . . . . . 35 . Parts Lost 86 | . . . 1 1 8 . 1 3 2 3 . . 15 . . 16 . 1 3 . . . . . 2 . . . . 1 5 3 . . . 12 9 Power 12 | . . . . . 1 . . . . . . . 3 . . 4 . . 1 . . . . . . . . . . . . 2 . . . . 1 Propulsion 32 | . . . 1 . 4 . . . 2 . . . 5 . . 9 . . 2 . . . . . 1 . . . . . 2 . . . . 5 1 Utility 28 | . . . . 1 3 . 1 1 . 2 . . 4 . . 2 . . . . . . . . 1 . . . . 1 2 1 . . . 4 5 Weapon 14 | . . . . . . . . 2 . 1 . . 3 . . 1 . 1 . . . . . . . . . . . . 1 . . . . 3 2 Highest Loss Streak 12 | . . . 1 1 7 . 1 2 1 2 . . 12 . . 8 . 1 1 . . . . . 2 . . . . 1 2 2 . . . 12 3 To Critical Strikes 6 | . . . . . 4 . . . . . . . . . . . . . . . . . . . . . . . . . . . . . . . 2 Average Backups 18 | 1 8 16 19 23 19 21 22 22 22 22 20 18 17 18 18 15 12 11 10 10 11 11 11 13 12 13 12 12 14 12 15 14 15 20 23 21 20 Power . | . 1 2 1 1 2 1 2 1 1 . . . . . . . . . . . . . . . . 1 1 . . . . . . . 1 1 1 Propulsion 2 | . 1 2 2 7 4 3 3 3 3 3 3 4 3 1 1 . . . . . 2 2 2 2 1 . . . . . . 1 2 . . . 1 Utility 7 | . 2 5 7 7 4 7 9 10 12 12 10 9 7 7 7 6 5 5 6 4 4 4 4 4 2 4 3 2 6 5 6 4 4 6 12 11 11 Weapon 6 | . 3 6 7 7 7 7 6 5 5 5 4 3 5 9 9 7 6 5 4 4 4 4 4 4 6 6 6 8 7 5 5 7 6 8 7 5 4 Tool/Special . | . . . . . . . . . . . . . . . . . . . . . . . . . . . . . . . . . . . . . . Unused Backups 81 | . . 2 7 . 7 2 1 1 . 3 5 . 4 . . 6 1 . . . . . 2 . 2 . 1 . . 2 9 4 5 7 1 . 9 Power 10 | . . . 1 . 3 . . . . . . . . . . 1 1 . . . . . . . . . . . . . 1 1 . 1 . . 1 Propulsion 14 | . . . 2 . 3 1 . . . . 1 . . . . . . . . . . . . . 1 . . . . 1 3 1 1 . . . . Utility 35 | . . . 2 . 1 1 . 1 . 2 2 . 4 . . 3 . . . . . . 1 . . . 1 . . . 2 . 3 5 . . 7 Weapon 18 | . . 2 2 . . . 1 . . 1 1 . . . . 2 . . . . . . 1 . 1 . . . . 1 3 1 1 . 1 . . Tool/Special 4 | . . . . . . . . . . . 1 . . . . . . . . . . . . . . . . . . . . 1 . 1 . . 1 Average Slot Usage (%) 91 | . 100 100 98 100 96 96 98 99 97 99 99 100 92 99 92 77 99 98 91 89 100 100 99 100 92 94 91 89 89 98 94 90 87 85 84 72 82 Engine 2 | . 14 14 11 11 8 . . . . . . . 4 7 7 5 5 6 1 2 5 5 5 . . . . . . . . 1 . . . . . Core 1 | . . . . . . 6 . 2 . . 1 4 . . . . . . 3 2 . . . . . . . . . . . . . 2 4 4 4 Reactor 4 | . . . . . 2 4 8 6 9 9 5 2 1 . . 1 6 6 5 5 5 5 5 10 10 10 10 10 10 9 9 5 7 5 4 3 4 Treads 14 | . 21 14 30 33 32 26 33 36 28 36 30 . 2 . . . . . . . . . . . . . . . . . . . . . . 7 16 Hover 10 | . . . . . . . . . . . 7 38 29 38 38 21 . . . . . . . . 2 5 1 . . 36 37 32 26 23 20 2 . Flight 4 | . . . . . . . . . . . . . . . . 8 39 40 39 37 41 41 41 41 28 26 27 26 26 . . . . . . . . Device 12 | . 14 14 . . . . 9 10 7 8 4 . 4 12 7 8 15 13 13 13 23 23 22 23 24 21 21 25 26 22 13 20 21 23 19 20 17 Storage 7 | . 14 14 11 11 11 11 9 9 9 11 7 7 7 7 7 6 6 6 6 5 5 5 5 5 5 5 5 5 5 4 5 6 6 6 4 4 4 Processor 7 | . . . . . 4 11 . . . . 2 23 10 . . 3 3 5 6 5 5 5 5 5 5 10 10 5 5 4 8 8 12 12 13 16 24 Hackware 5 | . . . 12 . 1 . 8 10 10 6 15 7 11 14 15 11 6 6 5 7 . . . . 4 5 5 5 5 5 7 1 . . 8 . . Protection 5 | . . . 8 21 13 7 8 6 8 8 5 . . 2 7 . . . . . . . . . . . . . . 2 2 4 4 3 2 3 4 Energy Gun 1 | . 14 7 2 . . . 6 5 . . . . . . . . . . . 2 . . . . . . . . . . . . . . . . . Energy Cannon 1 | . . . 1 . . . . . . . . . . . . 1 . . . . . . . . . . . . . . . 1 . . 3 7 4 Ballistic Gun 4 | . 14 20 14 14 14 18 11 5 . 1 . 5 . . . . 1 . . . . . . . . . . . . 1 1 . 1 . . . . Special Weapon 1 | . . . . . . . . 2 8 2 6 1 2 6 . . . . . . . . . . . . . . . . . 1 . . 1 . . Slashing Weapon 2 | . . . . . . . . 2 9 13 7 7 2 . . 1 6 4 . 1 5 5 5 5 5 5 4 4 5 3 2 3 1 . . . . Peak Build Rating 300 | 7 8 10 21 18 48 75 65 69 71 76 86 86 101 84 74 89 99 99 99 110 110 111 112 116 130 124 130 134 129 150 175 179 209 277 300 298 278 Average Rating 118 | 4 7 9 17 15 19 53 62 65 60 61 70 82 74 80 74 65 94 95 85 90 109 110 110 115 124 124 125 130 129 142 154 166 186 238 293 252 269 On Entrance 102 | . 7 8 10 18 15 48 57 64 69 62 58 77 81 81 84 74 80 99 90 86 110 110 111 111 116 124 124 129 129 129 144 163 179 200 273 294 278 Avg Prop Armor Cover (%) 8 | . 13 12 17 . . 9 4 . 12 . 6 4 12 . . 8 3 . . 3 . . . . 3 3 3 . . 3 3 3 . 4 . 11 16 Naked Turns 6 | . . . . . . . . . . . . . . . . . . . . . . . . . . . . . . . . . . . . . 6 Heaviest Build 153 | 13 49 50 96 99 102 128 121 117 107 107 106 65 75 69 61 70 40 39 47 49 53 50 54 54 53 49 52 53 50 85 146 99 105 116 123 153 128 Greatest Support 260 | 40 40 16 60 60 60 105 127 127 127 110 138 80 80 80 68 76 46 46 47 56 56 56 56 62 59 52 67 67 61 108 126 99 123 127 124 260 160 Greatest Overweight (x) 32 | . 3 3 3 1 1 1 1 . 8 . . . 1 1 . 3 . 1 1 1 . . . . 1 . . . . 2 1 1 1 27 . 32 . Average Overweight (x) . | . 1 3 . 1 . . . . 2 . . . . . . . . . . . . . . . . . . . . . . . . . . . . Largest Inventory Capacity 25 | 8 20 20 25 25 25 25 25 25 25 25 25 20 20 20 20 20 15 15 15 15 15 15 15 15 15 15 15 15 15 15 20 20 20 25 25 25 25 Average Capacity 21 | 6 13 20 21 25 22 23 25 25 25 25 22 20 20 20 20 17 15 15 15 15 15 15 15 15 15 15 15 15 15 15 19 20 20 22 25 25 24 Most Carried 25 | 4 15 20 25 25 25 25 25 25 25 25 25 20 20 20 20 20 15 15 15 15 15 15 15 15 15 15 15 15 15 15 20 20 20 25 25 25 25 Average Carried 20 | 1 8 17 21 24 19 23 24 24 24 24 22 20 19 19 20 16 14 14 14 14 15 15 14 14 14 15 14 14 15 14 18 19 19 21 24 22 22 Final Capacity 25 | 8 20 20 25 25 25 25 25 25 25 25 20 20 20 20 20 15 15 15 15 15 15 15 15 15 15 15 15 15 15 15 20 20 20 25 25 25 5 Final Carried 25 | 3 15 20 25 24 24 25 25 25 25 25 20 20 20 20 20 15 15 15 15 15 15 15 14 15 15 15 15 15 15 15 20 20 20 25 24 25 5 Scrap Suit Usage (%) 1 | . . . . . 1 . . . . . . . . . . . . . . . . . . . . . . . . . . . . . . . . Class Distribution -------------------- 27% | Scavenger-Mutant 12% | Mutant 10% | Scavenger-Sprinter 9% | Sprinter 8% | Scavenger-Skirmisher 7% | Bothacker-Mutant 3% | Hacker-Ninja 3% | Infiltrator-Ninja Dominant Class ---------------- Mutant | -10/Materials Mutant | -10/Mines Scavenger-Mutant | -9/Materials Scavenger-Mutant | -9/Mines Scavenger-Mutant | -9/Exiles Scavenger-Mutant | -8/Mines Scavenger-Mutant | -8/Materials Scavenger-Mutant | -8/Garrison Bothacker-Mutant | -8/Materials Bothacker-Gladiator | -8/Garrison Bothacker-Mutant | -7/Factory Machinist-Mutant | -7/Waste Mutant | -7/Factory Mutant | -7/Lower Caves Mutant | -7/Lower Caves Mutant | -6/Factory Scavenger-Sprinter | -6/Waste Sprinter | -6/Factory Sprinter | -6/Garrison Sprinter | -5/Factory Sprinter | -5/Upper Caves Sprinter | -5/Upper Caves Sprinter | -5/Zhirov Sprinter | -4/Proximity Caves Scout | -4/Factory Scout | -4/Waste Scout | -4/Factory Commander-Ninja | -4/Armory Commander-Ninja | -4/Lab Infiltrator-Ninja | -3/Research Hacker-Ninja | -3/Testing Scavenger-Sprinter | -2/Research Scavenger-Sprinter | -2/Quarantine Scavenger-Sprinter | -2/Protoforge Wizard-Ninja | -1/Access Scavenger-Skirmisher | -1/Command Scavenger-Skirmisher | -1/Access_0 Resources | -11 -10 -10 -9 -9 -9 -8 -8 -8 -8 -8 -7 -7 -7 -7 -7 -6 -6 -6 -6 -5 -5 -5 -5 -4 -4 -4 -4 -4 -4 -3 -3 -2 -2 -2 -1 -1 -1 ----------- Run | Yrd Mat Min Mat Min Exi Min Mat Gar Mat Gar Fac Was Fac Low Low Fac Was Fac Gar Fac Upp Upp Zhi Pro Fac Was Fac Arm Lab Res Tes Res Qua Frg Acc Com Ac0 Matter Collected 23393 | 260 170 119 712 127 626 778 821 442 221 695 320 78 1094 103 . 970 145 121 245 188 111 29 106 86 308 . 655 118 . 1211 3282 476 1651 3515 370 1168 2072 Remotely . | . . . . . . . . . . . . . . . . . . . . . . . . . . . . . . . . . . . . . . Salvage Created 29486 | 26 406 64 840 167 489 422 1522 937 368 666 798 870 1721 . . 1719 465 188 769 . 89 67 106 18 391 . 284 118 . 724 1919 1518 1687 3181 1956 2769 2222 Parts 1529 | 2 22 2 60 19 66 38 80 57 19 37 58 9 80 . . 97 12 8 29 . 1 . 1 1 15 . 10 9 . 36 101 75 106 178 71 103 127 Haulers Intercepted 24 | . 2 . 4 . . . 5 . 1 . 2 . . . . 4 . 1 . . . . . . 1 . 1 . . 2 1 . . . . . . Recyclers Shooed 18 | . 1 . 3 . . . . . 1 . 1 . 2 . . 6 . . . . . . . . 1 . 1 . . . 1 . 1 . . . . Parts Field Recycled . | . . . . . . . . . . . . . . . . . . . . . . . . . . . . . . . . . . . . . . Retrieved Matter . | . . . . . . . . . . . . . . . . . . . . . . . . . . . . . . . . . . . . . . Parts Self-Destructed . | . . . . . . . . . . . . . . . . . . . . . . . . . . . . . . . . . . . . . . Prevented . | . . . . . . . . . . . . . . . . . . . . . . . . . . . . . . . . . . . . . . Parts Restored 4 | . . . . . . . . . . . . . . . . . . . . . . . . . . . . . . . . . . 4 . . . Faulty 4 | . . . . . . . . . . . . . . . . . . . . . . . . . . . . . . . . . . 4 . . . Kills | -11 -10 -10 -9 -9 -9 -8 -8 -8 -8 -8 -7 -7 -7 -7 -7 -6 -6 -6 -6 -5 -5 -5 -5 -4 -4 -4 -4 -4 -4 -3 -3 -2 -2 -2 -1 -1 -1 ------- Run | Yrd Mat Min Mat Min Exi Min Mat Gar Mat Gar Fac Was Fac Low Low Fac Was Fac Gar Fac Upp Upp Zhi Pro Fac Was Fac Arm Lab Res Tes Res Qua Frg Acc Com Ac0 Combat Hostiles Destroyed 337 | . 6 . 15 11 4 13 27 23 3 14 6 . 29 . . 21 1 2 16 . 1 . . . . . . 1 . . 15 10 15 53 18 10 23 Melee 106 | . . . . . . 4 . 4 3 9 6 . 6 . . 5 . . 6 . . . . . . . . 1 . . 4 2 . 43 8 5 . Guns 87 | . 6 . 12 . 1 1 20 12 . 2 . . 6 . . 1 1 . . . . . . . . . . . . . 10 1 14 . . . . Cannons 36 | . . . 2 . . . . . . . . . . . . 1 . . . . . . . . . . . . . . . . . 3 9 3 18 AOE 92 | . . . 1 11 3 8 7 7 . 3 . . 16 . . 14 . 2 9 . 1 . . . . . . . . . . 6 . 4 . . . Classes Destroyed 34 | 1 5 1 3 . 3 . 3 1 . . . . 3 . . 1 2 . . . 2 . . . . . . . . . 3 2 1 2 . 1 . Worker 49 | . 1 . 1 1 . 2 2 . . . 6 . 6 . . 17 . . . . . . . . . . 2 . . 1 3 5 . 1 . 1 . Builder 37 | . . . 2 . . 1 . . 2 . 6 . 6 . . 3 . . . . . . . . 2 . . . . 2 5 5 . 2 1 . . Tunneler 16 | 1 . . 1 1 . . 1 . 1 . 3 . 1 . . 2 . . . . . . . . . . . . . 3 . 1 . . 1 . . Hauler 24 | . 2 . 4 . . . 5 . 1 . 2 . . . . 4 . 1 . . . . . . 1 . 1 . . 2 1 . . . . . . Recycler 36 | . . 1 1 1 . . 3 . 1 . 1 . 8 . . 3 . . . . . . . . 1 . 1 . . 3 3 4 1 . 2 2 . Mechanic 2 | . . . . . . . 1 . . . . . . . . . . . . . . . . . . . . . . . 1 . . . . . . Operator 6 | . 1 . . . . . 1 . . . . . 1 . . 1 . 2 . . . . . . . . . . . . . . . . . . . Drone 6 | . . . . . . . . . . . . . . . . . . . . . . . . . . . . . . . . 1 . 5 . . . Turret 1 | . . . . . 1 . . . . . . . . . . . . . . . . . . . . . . . . . . . . . . . . Watcher 25 | . 1 . 2 . . . 3 . 1 . . . . . . 4 . . 1 . . . . . 2 . . 1 . 1 2 5 1 . 1 . . Swarmer 62 | . . . 3 11 . 11 7 4 . 3 . . 10 . . 4 . 2 5 . . . . . . . . . . . . 2 . . . . . Cutter 2 | . . . . . . . . . . . . . . . . . . . . . . . . . . . . . . . . 2 . . . . . Saboteur 1 | . . . . . . . . . . . . . . . . 1 . . . . . . . . . . . . . . . . . . . . . Grunt 87 | . 6 . 7 . . 1 11 12 2 3 4 . 9 . . 4 . . 7 . . . . . . . . . . . 1 . 5 . 14 1 . Brawler 2 | . . . . . . . . . . . . . 2 . . . . . . . . . . . . . . . . . . . . . . . . Duelist 1 | . . . . . . . 1 . . . . . . . . . . . . . . . . . . . . . . . . . . . . . . Protector 3 | . . . . . . . . . . . . . 1 . . 1 . . . . . . . . . . . 1 . . . . . . . . . Researcher 6 | . . . . . . . . . . . . . . . . . . . . . . . . . . . . . . . 3 . . 3 . . . Sentry 37 | . . . 5 . . . 6 5 . 2 1 . 1 . . 1 . . 4 . . . . . . . . . . . . 1 . 11 . . . Specialist 2 | . . . . . . . . . . . . . 1 . . 1 . . . . . . . . . . . . . . . . . . . . . Hunter 19 | . . . . . . . 2 . 1 2 . . 3 . . 5 . . . . . . . . . . . . . . 2 2 . 2 . . . Programmer 51 | . . . . . . . . 2 . 4 1 . 2 . . 4 . . . . . . . . . . . . . . 9 2 . 22 3 2 . Heavy 1 | . . . . . . . . . . . . . . . . . . . . . . . . . . . . . . . . . . . . 1 . Compactor 1 | . . . . . . . . . . . . . . . . . 1 . . . . . . . . . . . . . . . . . . . . Quarantine Guard 9 | . . . . . . . . . . . . . . . . . . . . . . . . . . . . . . . . . 9 . . . . M Guard 2 | . . . . . . . . . . . . . . . . . . . . . . . . . . . . . . . . . . . . 2 . Enhanced Grunt 10 | . . . . . . . . . . . . . . . . . . . . . . . . . . . . . . . . . . . . . 10 Enhanced Sentry 1 | . . . . . . . . . . . . . . . . . . . . . . . . . . . . . . . . . . . . . 1 Enhanced Hunter 8 | . . . . . . . . . . . . . . . . . . . . . . . . . . . . . . . . . . . . . 8 Decapitator 7 | . . . . . . . . . . . . . . . . . . . . . . . . . . . . . . . . . . 7 . . . Immortal 3 | . . . . . . . . . . . . . . . . . . . . . . . . . . . . . . . . . . 3 . . . Combat Programmer 2 | . . . . . . . . . . . . . . . . . . . . . . . . . . . . . . . . . . . . 2 . Striker 1 | . . . . . . . . . . . . . . . . . . . . . . . . . . . . . . . 1 . . . . . . Alpha 7 3 | . . . . . . . . . . . . . . . . . . . . . . . . . . . . . . . 1 . . 2 . . . Fortress 1 | . . . . . . . . . . . . . . . . . . . . . . . . . . . . . . . . . 1 . . . . V-Series 1 | . . . . . . . . . . . . . . . . . . . . . . . . . . . . . . . . . . 1 . . . Zionite 7 | . . . . . 7 . . . . . . . . . . . . . . . . . . . . . . . . . . . . . . . . Decomposer 1 | . . . . . . . . . . . . . . . . . . . . . . . . 1 . . . . . . . . . . . . . Packrat 2 | . . . . . . . . . . . . . . . . . . . . . 1 1 . . . . . . . . . . . . . . . Samaritan 1 | . . . . . . . . . . . . . . . . . . . . . 1 . . . . . . . . . . . . . . . . Tinkerer 1 | . . . . . . . . . . . . . . . . . . . . . . . . . . . . . . . . . . 1 . . . Master Thief 1 | . . . . . . . . . . . . . . . . . . . . . 1 . . . . . . . . . . . . . . . . Assembled 3 | . . . . . 3 . . . . . . . . . . . . . . . . . . . . . . . . . . . . . . . . Thug 1 | . . . . . . . . 1 . . . . . . . . . . . . . . . . . . . . . . . . . . . . . Martyr 2 | . . . . . . . . . . . . . . . . . 2 . . . . . . . . . . . . . . . . . . . . Best Kill Streak 15 | 1 4 1 3 5 5 5 5 5 3 4 3 . 12 . . 15 1 2 6 . 1 . . . 2 . 2 1 . 2 4 8 5 5 9 2 5 Combat Bots Only 10 | . 2 . 3 4 3 4 4 5 1 4 3 . 7 . . 10 1 2 6 . 1 . . . . . . 1 . . 3 5 5 5 8 2 5 Max Kills in Single Turn 5 | 1 1 1 1 3 2 4 5 2 1 1 1 . 4 . . 5 1 1 5 . 1 1 . 1 1 . 1 1 . 1 2 4 1 3 2 2 1 Gunslinging . | . . . . . . . . . . . . . . . . . . . . . . . . . . . . . . . . . . . . . . Exploded 5 | . . . 1 3 2 4 4 2 . 1 . . 3 . . 4 . 1 5 . 1 . . . . . . . . . . 3 . 3 . . . Melee 1 | . . . . . . 1 . 1 1 1 1 . 1 . . 1 . . 1 . . . . . . . . 1 . . 1 1 . 1 1 1 . Uniques/NPCs Destroyed 17 | . . . . . 4 1 . . . . . . . . . . . . . . . . . . . . . . . . 2 . . . 4 2 4 8R-AWN (-9/Exiles) EX-DEC (-9/Exiles) EX-BIN (-9/Exiles) EX-HEX (-9/Exiles) CL-ANK (-8/Mines) DW-4LL (-3/Testing) CL-0N3 (-3/Testing) Svarog (-1/Access) Zhirov (-1/Access) Perun (-1/Access) V4-D3R (-1/Access) MAIN.C Shell (-1/Command) MAIN.C (-1/Command) A8 (-1/Access_0) A6 (-1/Access_0) A5 (-1/Access_0) Architect (-1/Access_0) Combat | -11 -10 -10 -9 -9 -9 -8 -8 -8 -8 -8 -7 -7 -7 -7 -7 -6 -6 -6 -6 -5 -5 -5 -5 -4 -4 -4 -4 -4 -4 -3 -3 -2 -2 -2 -1 -1 -1 -------- Run | Yrd Mat Min Mat Min Exi Min Mat Gar Mat Gar Fac Was Fac Low Low Fac Was Fac Gar Fac Upp Upp Zhi Pro Fac Was Fac Arm Lab Res Tes Res Qua Frg Acc Com Ac0 Hostile Shots Fired 2524 | . 31 . 78 14 62 33 121 103 21 68 63 . 435 2 2 164 . 18 94 1 . 2 . 3 12 . 10 32 . 38 207 58 34 124 98 130 466 Missed 787 | . 6 . 15 4 11 10 23 19 4 19 24 . 154 . . 50 . 11 44 . . 2 . 2 6 . 6 20 . 23 63 26 19 48 20 44 114 Hits 1737 | . 25 . 63 10 51 23 98 84 17 49 39 . 281 2 2 114 . 7 50 1 . . . 1 6 . 4 12 . 15 144 32 15 76 78 86 352 Melee 29 | . . . . . . . . . . . . . 3 . . 1 . . . . . . . . . . . . . . 1 . . 4 3 . 17 Projectile 1708 | . 25 . 63 10 51 23 98 84 17 49 39 . 278 2 2 113 . 7 50 1 . . . 1 6 . 4 12 . 15 143 32 15 72 75 86 335 AOE 6 | . . . . . . . . . . 1 . . . . . . . . . . . . . . . . . . . . . 2 . 1 . 2 . Critical Strikes 128 | . 1 . 4 . 22 2 3 4 1 2 . . 11 . . 2 . 1 2 . . . . . . . . . . . 20 1 1 11 4 6 30 Actively Blocked 2 | . . . . . . . . . . . . . . . . . . . . . . . . . . . . . . . 2 . . . . . . Part Disruptions 17 | . . . . . . . . . . . . . 1 . . . . . . . . . . . . . . . . . 1 . . 2 3 7 3 Actively Blocked 4 | . . . . . . . . . . . . . . . . . . . . . . . . . . . . . . . 1 . . . . 3 . Damage Taken 29808 | . 318 . 813 179 917 317 884 1057 301 761 435 . 3713 26 27 2170 . 238 594 12 . . . . 148 . 77 193 . 321 3405 968 317 1174 1272 2675 6496 Core 4018 | . 60 . 110 10 55 53 110 83 . 107 22 . 657 . . 458 . 13 97 . . . . . 28 . 38 12 . 55 461 124 113 59 76 292 925 Absorbed by Shields 7717 | . . . . . . . 332 258 . . . . 9 . . . . . 9 . . . . . . . 27 11 . 97 431 . 234 837 224 592 4656 Reduced by Siege Mode 322 | . . . . . . . . . . . . . . . . . . . . . . . . . . . . . . . . . . . . . 322 Redirected to Shielding 799 | . . . . . . . . . . . . . 159 . . . . . . . . . . . . . . . . 41 154 . 30 20 . 258 137 Ignored by Resistances 1124 | . . . . . . 6 178 . . . 20 . 18 5 6 21 . . . . . . . . . . . . . . . . . 26 23 610 211 Regen/Repaired (Parts) 2065 | . . . 287 . . . 391 . 384 . 189 . . . . . 91 111 292 . . . . . 37 . . . . 53 . 115 . . 48 18 49 Core Remaining (%) 57 | 100 . 76 . . . 43 . . . 45 . . . . 3 . . . 33 . . . . 100 . . . . 93 . 60 . . 68 . . 13 Volleys Fired 1270 | 3 47 2 85 9 56 57 126 62 8 29 17 8 56 1 1 57 4 2 5 4 2 . . . . . 2 18 . 1 173 34 135 58 33 32 143 Largest 2 | 2 2 2 2 2 2 2 2 2 1 2 1 1 2 1 1 2 1 1 1 1 1 . . . . . 1 1 . 1 2 1 1 1 2 2 2 Hottest 280 | 60 60 60 116 46 53 46 88 88 5 60 5 30 105 105 . 210 30 49 50 7 50 . . . . . . 40 . 49 75 120 120 140 280 280 280 Shots Fired 1772 | 6 93 4 156 11 90 108 231 108 8 45 17 8 64 1 1 61 3 2 5 4 2 . . . . . 2 19 . 1 200 34 136 58 48 50 196 Gun 1198 | 6 93 4 105 4 70 102 226 104 . 32 . 8 27 . . 21 3 . 2 . . . . . . . . 19 . . 190 12 125 45 . . . Cannon 402 | . . . 49 . . . . . . . . . 2 1 . 31 . . . . . . . . . . . . . . . 14 9 8 48 44 196 Launcher 93 | . . . 2 7 20 6 5 4 . 3 . . 14 . . 6 . 2 3 . 2 . . . . . . . . 1 . 5 2 5 . 6 . Special 79 | . . . . . . . . . 8 10 17 . 21 . 1 3 . . . 4 . . . . . . 2 . . . 10 3 . . . . . Kinetic 1003 | 3 47 3 114 4 70 102 146 49 . 32 . 8 27 . . 21 3 . 2 . . . . . . . . 19 . . 160 12 125 17 . . 39 Thermal 529 | 3 46 1 34 . . . 80 55 . . . . 2 1 . 31 . . . . . . . . . . . . . . . 14 9 8 48 44 153 Explosive 77 | . . . 2 7 20 6 5 4 . 3 . . 14 . . 6 . . 2 . 2 . . . . . . . . . . 1 . 5 . . . Electromagnetic 51 | . . . 6 . . . . . . . . . . . . . . 2 1 . . . . . . . . . . 1 14 4 2 11 . 6 4 Impact 33 | . . . . . . . . . . . . . . . . . . . . . . . . . . . . . . . 16 . . 17 . . . Robot Hit Streak 31 | 2 10 1 22 9 16 9 21 16 18 19 4 2 4 . 2 6 2 . . 6 . . . . . . . . . . 13 8 9 10 22 31 20 Robot Miss Streak 10 | 1 3 5 4 1 4 7 5 2 1 2 2 4 2 . . 4 1 . . . 10 . . . . . . . . . 7 1 4 7 1 1 4 Penetration Max 2 | . . . . . . . . . . . . . 1 . . . 1 . . . . . . . . . . . . . 2 . 1 2 1 1 1 Secondary Targets 7 | . 1 . . . . . 1 3 . . . . . . . . . . . . . . . . . . . . . . 2 . . . . . . Max Gunslinging Chain 1 | . 1 . . . . . 1 1 . . . . . . . . . . . . . . . . . . . . . . 1 . . . . . . Shots Hit Robots 1633 | 4 61 1 107 4 72 79 160 83 28 58 49 3 75 . 1 71 6 5 17 4 2 1 3 1 19 . 15 16 . 27 185 35 54 102 71 84 130 Core Hits 884 | 1 21 1 35 13 43 32 73 41 7 16 15 3 73 . . 89 3 4 34 . 4 1 1 . 4 . 6 4 . 9 59 22 30 57 31 44 108 Critical Kills 89 | . . . 1 . . . . . . 1 . 3 3 . . 2 1 . 1 . . . . . . . . . . . 16 2 13 26 1 . 19 Critical Parts Destroyed 120 | . . . 1 . . . . . . 2 . . 6 . . 11 . . 2 . . . . . . . . 1 . . 32 1 15 37 . . 12 Critical Strikes 349 | . . . 5 . 2 . 4 4 3 7 3 3 14 . . 16 3 . 4 . . . . . 1 . 1 4 . 1 70 6 28 76 27 32 35 Burn 7 | . . . 2 . . . 4 1 . . . . . . . . . . . . . . . . . . . . . . . . . . . . . Meltdown 5 | . . . . . . . . . . . . . . . . . . . . . . . . . . . . . . . . . . . 1 . 4 Destroy 156 | . . . 2 . . . . 1 . 3 . 3 8 . . 7 2 . . . . . . . . . . 3 . . 56 2 28 10 . . 31 Blast 1 | . . . 1 . . . . . . . . . . . . . . . . . . . . . . . . . . . . . . . . . . Smash 78 | . . . . . . . . . . . . . 3 . . 6 . . 4 . . . . . . . . . . . 9 2 . 54 . . . Sever 31 | . . . . . 2 . . 2 3 4 3 . 2 . . 3 1 . . . . . . . 1 . 1 1 . 1 5 2 . . . . . Impale 71 | . . . . . . . . . . . . . 1 . . . . . . . . . . . . . . . . . . . . 12 26 32 . Melee Attacks 941 | . . . . . 36 17 . 22 30 61 45 . 64 13 . 48 5 11 43 9 2 4 3 6 33 . 19 24 . 77 90 38 23 108 50 60 . Kinetic 105 | . . . . . . . . . . . . . 1 . . 2 . . 1 . . . . . . . . . . . 23 3 3 72 . . . Impact 93 | . . . . . . . . . . . . . 11 13 . 19 1 4 42 2 . . . 1 . . . . . . . . . . . . . Slashing 552 | . . . . . 32 17 . 19 30 61 45 . 28 . . 27 4 7 . 7 2 4 3 5 29 . 18 12 . 76 62 35 20 9 . . . Piercing 161 | . . . . . . . . . . . . . 24 . . . . . . . . . . . . . . . . . . . . 27 50 60 . Sneak Attacks 178 | . . . . . 4 2 . 3 7 3 21 . 17 . . 16 4 3 2 . 2 1 . 1 9 . 7 13 . 13 9 15 2 17 5 2 . Combat Hostiles 8 | . . . . . . . . . . 1 . . . . . . . . 1 . . . . . . . . 1 . . . 1 . 2 . 2 . Follow-up Attacks 15 | . . . . . . . . . . 2 . . 4 . . 1 . 2 . . . . . . . . . . . . . . . . 1 5 . Martial Strikes 26 | . . . . . . . . . . . . . . . . . . . . . . . . . . . . . . . . . . 10 10 6 . Damage Inflicted 81423 | 35 721 15 2098 682 2014 1662 3433 2456 947 1547 2089 77 4753 . . 7292 562 692 1976 . 577 79 243 105 963 . 872 303 . 1944 6107 3985 1627 11404 5794 6108 8261 Guns 13484 | 35 721 15 1184 46 736 674 2671 1189 . 98 . 77 354 . . 304 85 . . . . . . . . . . 24 . . 3337 86 1224 624 . . . Cannons 15325 | . . . 584 . . . . . . . . . . . . 719 . . . . . . . . . . . . . . . 49 . 59 3616 2057 8241 Explosions 12644 | . . . 289 619 546 440 647 721 . 265 . . 2335 . . 3051 . 156 817 . 382 . . . . . . . . 140 . 1130 . 881 . 225 . Melee 39710 | . . . . . 732 514 . 546 947 1184 2087 . 2052 . . 3218 477 536 1159 . 195 79 243 105 963 . 872 279 . 1804 2751 2720 403 9840 2178 3826 . Ramming 260 | . . . 41 17 . 34 115 . . . 2 . 12 . . . . . . . . . . . . . . . . . 19 . . . . . 20 Kinetic 19790 | 14 383 15 1281 46 736 674 1482 565 . 98 . 77 401 . . 567 85 . 142 . . . . . . . . 24 . . 3082 790 1346 7704 . . 278 Thermal 17300 | 21 338 . 593 . . . 1189 624 . . . . . . . 991 . . . . . . . . . . . . . . . 49 . . 3616 2057 7822 Explosive 11087 | . . . 95 619 546 440 647 721 . 265 . . 2335 . . 2712 . . 720 . 382 . . . . . . . . . . 724 . 881 . . . Electromagnetic 1694 | . . . 88 . . . . . . . . . . . . 67 . 156 97 . . . . . . . . . . 140 254 406 . 120 . 225 141 Impact 4289 | . . . . . . . . . . . . . 464 . . 1221 . 301 1017 . . . . . . . . . . . 868 . . 418 . . . Slashing 18112 | . . . . . 732 514 . 546 947 1184 2087 . 850 . . 1734 477 235 . . 195 79 243 105 963 . 872 279 . 1804 1884 2016 281 85 . . . Piercing 8891 | . . . . . . . . . . . . . 691 . . . . . . . . . . . . . . . . . . . . 2196 2178 3826 . Highest Corruption 28 | . . . . . . . . 1 1 2 1 1 12 12 12 2 2 . . . . . . . . 8 8 8 8 1 28 2 2 10 . 16 3 Average Corruption 5 | . . . . . . . . 1 1 1 1 1 5 12 12 1 1 . . . . . . . . 8 8 8 8 1 16 2 2 3 . 4 2 Corruption Purged 41 | . . . . . . . . . . . . . . . . . 2 . . . . . . . . . . . . . . . . . . 39 . Corruption Blocked 14 | . . . . . . . . . . . . . . . . . . . . . . . . . . . . . . . . . . 12 2 . . Effects 323 | . . . . . . . . 2 8 12 3 1 31 17 2 11 4 . . . . . . . . . 13 9 . 3 97 . 34 24 . 42 10 Message Errors 79 | . . . . . . . . . 2 4 1 . 7 4 . 2 1 . . . . . . . . . 3 2 . 1 19 . 5 8 . 17 3 Matter Fused 71 | . . . . . . . . 1 3 3 . . 6 6 1 5 . . . . . . . . . . 1 . . . 25 . 7 4 . 7 2 Heat Flow Errors 46 | . . . . . . . . . . 2 1 . 7 1 . . 1 . . . . . . . . . 3 2 . 2 10 . 7 2 . 6 2 Energy Discharges 35 | . . . . . . . . . 1 . 1 1 3 1 . 2 . . . . . . . . . . 2 3 . . 8 . 5 4 . 4 . Parts Rejected 6 | . . . . . . . . . . . . . . . . . . . . . . . . . . . . . . . 5 . 1 . . . . Parts Fused 6 | . . . . . . . . . 1 1 . . 2 . . . . . . . . . . . . . . . . . . . . 1 . 1 . Data Loss (minor) 30 | . . . . . . . . 1 . 1 . . 3 3 . 1 1 . . . . . . . . . 3 . . . 7 . 4 3 . 2 1 Data Loss (major) 15 | . . . . . . . . . . 1 . . 1 . . 1 . . . . . . . . . . . . . . 5 . 2 . . 4 1 Misfires 6 | . . . . . . . . . . . . . . . . . . . . . . . . . . . . 1 . . 1 . 2 . . 1 1 Alerts 10 | . . . . . . . . . 1 . . . 2 1 . . . . . . . . . . . . 1 1 . . 3 . . 1 . . . Misdirections 13 | . . . . . . . . . . . . . . 1 1 . . . . . . . . . . . . . . . 10 . . 1 . . . Weapon Failures 6 | . . . . . . . . . . . . . . . . . 1 . . . . . . . . . . . . . 4 . 1 . . . . Overload Shots . | . . . . . . . . . . . . . . . . . . . . . . . . . . . . . . . . . . . . . . Overflow Damage 12856 | . . . 35 60 . 65 65 66 58 107 397 . 580 . . 1746 49 28 307 . 129 . . 100 182 . 192 . . 335 733 1278 58 5033 787 355 111 Projectiles 517 | . . . . . . . . . . . . . . . . 52 . . . . . . . . . . . . . . . . . . 210 144 111 Explosions 1020 | . . . 35 60 . . 38 25 . 66 . . 78 . . 172 . 4 . . 33 . . . . . . . . . . 351 . 158 . . . Melee 11319 | . . . . . . 65 27 41 58 41 397 . 502 . . 1522 49 24 307 . 96 . . 100 182 . 192 . . 335 733 927 58 4875 577 211 . Knockbacks 36 | . . . 9 . . 2 1 . . . . . . . . 2 . . 1 . . . . . . . . . . . 9 . . 7 . . 5 Impact 21 | . . . 1 . . 2 1 . . . . . . . . 2 . . 1 . . . . . . . . . . . 8 . . 6 . . . Kinetic 13 | . . . 8 . . . . . . . . . . . . . . . . . . . . . . . . . . . . . . 1 . . 4 Secondary 2 | . . . . . . . . . . . . . . . . . . . . . . . . . . . . . . . 1 . . . . . 1 Self-Inflicted Damage 731 | . . . . 97 . 77 18 77 . 63 . . 155 . . 175 . . 60 . . . . . . . . . . . 9 . . . . . . Shots 33 | . . . . 5 . 3 1 2 . 3 . . 6 . . 9 . . 4 . . . . . . . . . . . . . . . . . . Rammed 13 | . . . 4 . . 3 3 . . . 1 . . . . . . . . . . . . . . . . . . . 1 . . . . . 1 Targets Rammed 18 | . . . 5 1 . 3 4 . . . 1 . 2 . . . . . . . . . . . . . . . . . 1 . . . . . 1 Kicked 2 | . . . . . . . . . . . . . 2 . . . . . . . . . . . . . . . . . . . . . . . . Crushed 3 | . . . 1 1 . . 1 . . . . . . . . . . . . . . . . . . . . . . . . . . . . . . Highest Temperature 421 | 20 78 . 421 . . 10 267 316 8 178 268 5 338 267 1 213 314 158 6 16 . . 7 53 . . 197 197 . 223 271 160 254 120 337 223 203 Average Temperature 83 | 15 29 . 134 . . 5 69 110 8 34 125 4 74 117 1 55 161 70 6 6 . . 7 38 . . 89 67 . 106 78 37 88 44 110 115 98 Received Heat Transfer 3092 | . 195 . 486 . . 81 346 341 117 93 132 . 496 18 18 192 . 9 117 . . . . . . . 6 . . 8 90 45 17 77 171 28 9 Thermoelectric Energy+ 3318 | . . . . . . . . . . . . . . . . . . . . . . . . . . . . . . . . . . . 1513 1086 719 Effects 24 | . . . 4 . . . 6 2 . . . . 3 . . . . . . . . . . . . . . . . . . . . . 5 . 4 Energy Bleed 2 | . . . 1 . . . . . . . . . . . . . . . . . . . . . . . . . . . . . . . . . 1 Interference 21 | . . . 3 . . . 6 2 . . . . 2 . . . . . . . . . . . . . . . . . . . . . 5 . 3 Damage (minor) 1 | . . . . . . . . . . . . . 1 . . . . . . . . . . . . . . . . . . . . . . . . Siege Activations 3 | . . . . . . . . . . . . . . . . . . . . . . . . . . . . . . . . . . . . . 3 Total Turns 62 | . . . . . . . . . . . . . . . . . . . . . . . . . . . . . . . . . . . . . 62 Longest Duration 28 | . . . . . . . . . . . . . . . . . . . . . . . . . . . . . . . . . . . . . 28 Martial Activations . | . . . . . . . . . . . . . . . . . . . . . . . . . . . . . . . . . . . . . . Shielding Activations . | . . . . . . . . . . . . . . . . . . . . . . . . . . . . . . . . . . . . . . Robots Disrupted . | . . . . . . . . . . . . . . . . . . . . . . . . . . . . . . . . . . . . . . Combat Hostiles . | . . . . . . . . . . . . . . . . . . . . . . . . . . . . . . . . . . . . . . Robots Corrupted 17 | . . . . . . . 1 . . . . . 1 . . 3 . 1 3 . . . . . . . . . . . 1 1 . 3 . 2 1 Combat Hostiles 10 | . . . . . . . . . . . . . 1 . . . . . 1 . . . . . . . . . . . 1 1 . 3 . 2 1 Parts Fried 36 | . . . . . . . 2 . . . . . 5 . . 2 . 2 6 . . . . . . . . . . . . 1 . 4 . 4 10 Impact Corruptions 38 | . . . . . . . 1 . . . . . 3 . . 17 . 1 10 . . . . . . . . . . . 4 . . 2 . . . Robots Melted 5 | . . . . . . . . . . . . . . . . . . . . . . . . . . . . . . . . . . . 1 . 4 Combat Hostiles 5 | . . . . . . . . . . . . . . . . . . . . . . . . . . . . . . . . . . . 1 . 4 Parts Melted 22 | . . . 1 . . . 2 5 . . . . . . . . . . . . . . . . . . . . . . . . 3 . 2 1 8 Heat Transferred 11542 | 50 750 . 1075 . . . 2849 1406 . . . . . . . 890 . . . . . . . . . . . . . . . 37 . . 1592 842 2051 Parts Sabotaged 4 | . . . . . . . . . . . . . . . . 4 . . . . . . . . . . . . . . . . . . . . . Parts Stolen . | . . . . . . . . . . . . . . . . . . . . . . . . . . . . . . . . . . . . . . Parts Stripped 18 | . . . . . . . . . . . . . . . . . . . . . . . . . . . . . . . . . 18 . . . . Power Chain Reactions 1 | . . . . . . . . . . . . . . . . . . . . . . . . . . . . . . . . . 1 . . . . Alert | -11 -10 -10 -9 -9 -9 -8 -8 -8 -8 -8 -7 -7 -7 -7 -7 -6 -6 -6 -6 -5 -5 -5 -5 -4 -4 -4 -4 -4 -4 -3 -3 -2 -2 -2 -1 -1 -1 ------- Run | Yrd Mat Min Mat Min Exi Min Mat Gar Mat Gar Fac Was Fac Low Low Fac Was Fac Gar Fac Upp Upp Zhi Pro Fac Was Fac Arm Lab Res Tes Res Qua Frg Acc Com Ac0 Maximum Alert Level 5 | . . . 1 . . . 1 3 2 3 2 . 3 . . 2 1 2 5 3 . . . . . . . 1 . 1 2 2 2 4 3 3 . Low Security (%) 37 | 100 100 100 11 100 . 100 75 9 . 7 51 100 21 . . 71 90 61 . 29 . . . . 100 100 100 73 . 99 15 . . . . . . Level 1 17 | . . . 88 . . . 24 11 68 23 43 . 12 . . 8 9 12 2 30 . . . . . . . 26 . . 47 3 5 11 10 . . Level 2 28 | . . . . . . . . 32 31 67 4 . 37 . . 20 . 25 13 26 . . . . . . . . . . 37 96 94 23 73 50 . Level 3 14 | . . . . . . . . 47 . . . . 28 . . . . . 27 13 . . . . . . . . . . . . . 43 15 49 . Level 4 2 | . . . . . . . . . . . . . . . . . . . 27 . . . . . . . . . . . . . . 20 . . . Level 5 1 | . . . . . . . . . . . . . . . . . . . 29 . . . . . . . . . . . . . . . . . . High Security . | . . . . . . . . . . . . . . . . . . . . . . . . . . . . . . . . . . . . . . Max Security . | . . . . . . . . . . . . . . . . . . . . . . . . . . . . . . . . . . . . . . Peak Influence 1825 | 5 128 45 389 184 . 181 330 1049 510 795 445 78 781 . . 601 208 585 1825 961 . . . . 142 39 63 285 . 262 690 693 646 1302 780 717 . Initial 957 | . . 45 . 96 . . 9 188 510 158 417 78 . . . 150 208 70 392 957 . . . . . 39 13 11 . . 144 371 388 363 780 407 . Average 359 | . 18 2 285 55 . 36 133 652 343 483 209 35 470 . . 225 160 250 1197 371 . . . . 48 35 33 89 . 32 396 543 519 845 557 589 . Influence Increases 18862 | 5 226 5 812 311 . 332 977 971 178 787 461 . 1569 75 . 1051 43 843 1633 353 . 120 5 . 290 . 190 533 . 621 1264 672 882 1601 799 545 708 Destroy 0b10 Robot/C 7520 | . 120 . 480 220 . 240 540 460 100 360 200 . 760 . . 400 . 320 700 100 . . . . . . . . . . 620 180 300 1020 220 180 . Destroy 0b10 Robot/NC 1130 | 5 25 5 60 15 . 20 80 . 30 15 90 . 140 . . 170 . 30 10 . . . 5 . 30 . 20 10 . 60 75 105 10 50 25 45 . Destroy Leader 1246 | . 46 . 114 30 . 40 156 30 24 10 54 . 144 . . 86 . 54 40 10 . . . . 6 . 2 4 . 6 96 40 102 80 52 20 . Allied During Kill 883 | . . . 51 . . . . 9 3 25 7 . 33 . . . . 390 272 17 . . . . . . . . . . 71 5 . . . . . Trap Triggered on 0b10 80 | . . . . . . . . . . . . . 50 . . . . . . . . . . . . . . . . 20 10 . . . . . . Successful Hack 753 | . 5 . 29 . . . 41 18 20 30 91 . 4 . . 38 . 19 14 45 . . . . 22 . 57 16 . 63 52 36 116 21 . 16 . Select Force Hacks 60 | . . . . . . . . . . . . . . . . . . . . . . . . . 30 . . . . . . . 30 . . . . Disable Machine 1155 | . . . 45 . . . 75 . . . . . 60 . . 150 . 30 15 30 . . . . . . . 60 . 15 75 15 150 285 45 30 75 Anti-Garrison Action 1000 | . . . . . . . . 350 . 250 . . . . . . . . 400 . . . . . . . . . . . . . . . . . . Destroy Structure 1835 | . . . 33 46 . 32 25 59 1 82 4 . 93 . . 147 43 . 92 16 . . . . 22 . 6 8 . 52 40 81 99 40 157 24 633 Partial Spotted 735 | . . . . . . . . . . 15 . . 15 . . 30 . . . 45 . . . . . . 60 120 . 180 30 135 30 60 . 15 . Lose Combat Pursuer 1965 | . 30 . . . . . 60 45 . . 15 . 270 75 . 30 . . 90 90 . 120 . . 180 . 45 315 . 225 195 75 45 45 . 15 . Active Sensor Use 500 | . . . . . . . . . . . . . . . . . . . . . . . . . . . . . . . . . . . 300 200 . Influence Decreases 18244 | 5 110 121 563 517 43 306 713 212 983 236 1032 224 800 523 82 695 537 383 369 1991 110 115 87 . 178 93 184 283 275 365 860 641 927 947 1462 470 802 Entered New Map 6410 | . . 71 . 153 43 . 17 102 539 86 378 146 . 285 62 89 387 31 169 868 70 15 82 . . 73 6 14 275 . 112 289 303 283 520 230 712 Time Decay 8286 | 5 110 50 493 354 . 306 536 . 404 . 614 78 490 198 . 446 140 222 . 198 40 100 5 . 164 10 178 120 . 355 638 302 604 664 342 120 . Search Patrol Dispatched 200 | . . . . . . . . . . . . . 100 . . . . . . . . . . . . . . 100 . . . . . . . . . Lost Part 774 | . . . 10 10 . . 10 30 20 30 . . 150 . . 160 . 10 30 . . . . . 14 . . . . 10 50 30 . . . 120 90 Lost Ally 999 | . . . 60 . . . . 80 20 120 40 . 60 40 20 . 10 120 170 100 . . . . . 10 . 49 . . 60 20 20 . . . . Purge Threat 1575 | . . . . . . . 150 . . . . . . . . . . . . 825 . . . . . . . . . . . . . . 600 . . Squads Dispatched 97 | . 2 1 1 . . 1 7 . 3 . 7 . 9 . . 5 . 4 . 2 . . . . 4 . 2 4 . 6 12 6 1 6 10 4 . Investigation 32 | . . 1 1 . . . 2 . 2 . 2 . 4 . . 1 . 1 . 1 . . . . 3 . 1 1 . 2 2 1 1 . 4 2 . Extermination 27 | . . . . . . . . . . . 4 . 2 . . 2 . . . . . . . . 1 . 1 . . 3 5 2 . 4 2 1 . Reinforcement 27 | . 2 . . . . 1 3 . 1 . 1 . 3 . . 2 . 2 . 1 . . . . . . . 1 . 1 4 3 . . 1 1 . Assault 8 | . . . . . . . . . . . . . . . . . . . . . . . . . . . . 2 . . 1 . . 2 3 . . Garrison 3 | . . . . . . . 2 . . . . . . . . . . 1 . . . . . . . . . . . . . . . . . . . Intercept . | . . . . . . . . . . . . . . . . . . . . . . . . . . . . . . . . . . . . . . Searches Triggered 2 | . . . . . . . . . . . . . 1 . . . . . . . . . . . . . . 1 . . . . . . . . . Unchained Authorized 5 | . . . . . . . . . . . . . . . . . . . . . . . . . . . 1 1 . . 2 . . . 1 . . Construction Impeded 4 | . . . . . . 1 . . . . . . 2 . . 1 . . . . . . . . . . . . . . . . . . . . . Haulers Reinforced 2 | . . . . . . . . . . . . . 1 . . 1 . . . . . . . . . . . . . . . . . . . . . Active Scanning Responses 5 | . . . . . . . . . . . . . . . . . . . . . . . . . . . . . . . . . . . 3 2 . Cargo Convoy Interrupts 3 | . . . . . . . . . . . . . 1 . . 1 . . . . . . . . . . . . . 1 . . . . . . . Stealth | -11 -10 -10 -9 -9 -9 -8 -8 -8 -8 -8 -7 -7 -7 -7 -7 -6 -6 -6 -6 -5 -5 -5 -5 -4 -4 -4 -4 -4 -4 -3 -3 -2 -2 -2 -1 -1 -1 --------- Run | Yrd Mat Min Mat Min Exi Min Mat Gar Mat Gar Fac Was Fac Low Low Fac Was Fac Gar Fac Upp Upp Zhi Pro Fac Was Fac Arm Lab Res Tes Res Qua Frg Acc Com Ac0 Distress Signals 54 | . 4 . 2 . . . 7 . . . 1 . 3 . . . . . 1 1 . . . 1 . . . 4 . 2 1 . . . . 27 . Communications Jammed 131 | . . . . . . . . . 4 . 9 . 22 . . . . 4 . . . . . . . . 10 34 . 6 1 27 6 . 5 3 . Distress Signals 100 | . . . . . . . . . 4 . 9 . 22 . . . . . . . . . . . . . 9 34 . 6 1 4 6 . 5 . . Times Spotted 756 | . 13 . 29 9 9 14 47 28 13 21 24 . 66 8 3 35 8 15 35 8 2 9 . 3 20 4 11 34 . 32 69 33 16 53 25 12 48 Peak Tracking Total 22 | . 3 . 5 4 9 6 4 4 3 5 5 . 11 4 3 8 6 4 6 3 1 3 . 3 6 4 5 18 . 22 6 7 2 4 10 5 6 Tactical Retreats 74 | . 2 . . . . . 4 2 . . 1 . 9 3 . 1 1 . 3 3 . 3 . . 4 . 3 5 . 9 10 3 2 3 1 1 1 Traps | -11 -10 -10 -9 -9 -9 -8 -8 -8 -8 -8 -7 -7 -7 -7 -7 -6 -6 -6 -6 -5 -5 -5 -5 -4 -4 -4 -4 -4 -4 -3 -3 -2 -2 -2 -1 -1 -1 ------- Run | Yrd Mat Min Mat Min Exi Min Mat Gar Mat Gar Fac Was Fac Low Low Fac Was Fac Gar Fac Upp Upp Zhi Pro Fac Was Fac Arm Lab Res Tes Res Qua Frg Acc Com Ac0 Traps Triggered 52 | . . . 1 . . . 1 1 1 . 3 . 3 . . 2 . . 8 . . . . . 1 . . . . 6 . 2 4 15 3 1 . Indirectly . | . . . . . . . . . . . . . . . . . . . . . . . . . . . . . . . . . . . . . . Trap Hack Attempts 41 | . . . . . . . . 1 . . . . . . . . . . . . . . . . . . . . . 38 2 . . . . . . Triggered . | . . . . . . . . . . . . . . . . . . . . . . . . . . . . . . . . . . . . . . Disarmed 1 | . . . . . . . . 1 . . . . . . . . . . . . . . . . . . . . . . . . . . . . . Reprogrammed 4 | . . . . . . . . . . . . . . . . . . . . . . . . . . . . . . 3 1 . . . . . . Reused 3 | . . . . . . . . . . . . . . . . . . . . . . . . . . . . . . 2 1 . . . . . . Traps Extracted . | . . . . . . . . . . . . . . . . . . . . . . . . . . . . . . . . . . . . . . Installed . | . . . . . . . . . . . . . . . . . . . . . . . . . . . . . . . . . . . . . . Triggered 8 | . . . . . . . . . . . . . 5 . . . . . . . . . . . . . . . . 2 1 . . . . . . Objects Rigged 9 | . . . . . . . . . . . . . . . . 9 . . . . . . . . . . . . . . . . . . . . . Exploded 1 | . . . . . . . . . . . . . . . . 1 . . . . . . . . . . . . . . . . . . . . . Time Bombs Activated 1 | . . . . . . . . . . . . . . . . . . . . . . . . . . . . . . . . . . . 1 . . Exploded 1 | . . . . . . . . . . . . . . . . . . . . . . . . . . . . . . . . . . . 1 . . Machines | -11 -10 -10 -9 -9 -9 -8 -8 -8 -8 -8 -7 -7 -7 -7 -7 -6 -6 -6 -6 -5 -5 -5 -5 -4 -4 -4 -4 -4 -4 -3 -3 -2 -2 -2 -1 -1 -1 ---------- Run | Yrd Mat Min Mat Min Exi Min Mat Gar Mat Gar Fac Was Fac Low Low Fac Was Fac Gar Fac Upp Upp Zhi Pro Fac Was Fac Arm Lab Res Tes Res Qua Frg Acc Com Ac0 Machines Disabled 106 | . . . 3 . 9 . 5 6 . 3 . . 4 . . 10 . 2 8 2 . . . 1 . . . 4 . 1 5 1 10 22 3 2 5 Max in Single Turn 4 | . . . 3 . 2 . 1 2 . 1 . . 2 . . 4 . 1 1 1 . . . 1 . . . 1 . 1 1 1 1 1 1 1 1 Garrison Access 11 | . . . . . . . . . . . . . 1 . . . . . . 1 . . . . 1 . . . . 4 1 1 . 1 1 . . Garrison Relay 12 | . . . . . . . . 4 . 3 . . . . . . . . 5 . . . . . . . . . . . . . . . . . . Phase Generator 3 | . . . . . . . . 1 . . . . . . . . . . 1 . . . . . . . . . . . . . . . . 1 . Machines Repaired . | . . . . . . . . . . . . . . . . . . . . . . . . . . . . . . . . . . . . . . Machines Dismantled . | . . . . . . . . . . . . . . . . . . . . . . . . . . . . . . . . . . . . . . Machines Sabotaged . | . . . . . . . . . . . . . . . . . . . . . . . . . . . . . . . . . . . . . . Overloaded Fab Kills . | . . . . . . . . . . . . . . . . . . . . . . . . . . . . . . . . . . . . . . Hacking | -11 -10 -10 -9 -9 -9 -8 -8 -8 -8 -8 -7 -7 -7 -7 -7 -6 -6 -6 -6 -5 -5 -5 -5 -4 -4 -4 -4 -4 -4 -3 -3 -2 -2 -2 -1 -1 -1 --------- Run | Yrd Mat Min Mat Min Exi Min Mat Gar Mat Gar Fac Was Fac Low Low Fac Was Fac Gar Fac Upp Upp Zhi Pro Fac Was Fac Arm Lab Res Tes Res Qua Frg Acc Com Ac0 Machines Accessed 193 | . 3 1 11 . 2 . 14 3 6 2 12 . 10 . . 7 . 3 1 12 1 1 4 . 15 . 11 6 . 22 12 9 12 6 5 2 . Terminals 113 | . 3 . 7 . . . 9 3 4 2 6 . 4 . . 5 . 2 1 9 . . . . 8 . 6 3 . 10 9 3 9 5 3 2 . Fabricators 16 | . . . . . . . . . . . 3 . 2 . . 1 . . . 1 . . . . 1 . 2 2 . 2 . 1 . . 1 . . Repair Stations 13 | . . . 2 . . . 2 . 1 . 1 . 1 . . . . . . 1 . . . . 2 . . 1 . 1 . 1 . . . . . Recycling Units 8 | . . . . . . . . . . . 1 . . . . 1 . . . . . . . . 1 . 2 . . 2 . 1 . . . . . Scanalyzers 17 | . . . 2 . . . 2 . . . . . 2 . . . . . . . . . . . 1 . 1 . . 3 2 2 2 . . . . Garrison Access 17 | . . . . . . . 1 . 1 . 1 . 1 . . . . 1 . 1 . . . . 2 . . . . 4 1 1 1 1 1 . . Total Hacks 523 | . 10 1 40 . 5 . 42 4 22 3 36 . 32 . . 25 . 10 2 34 1 1 17 . 30 . 24 15 . 48 29 22 39 10 17 4 . Successful 297 | . 2 1 31 . 5 . 29 3 16 3 16 . 11 . . 14 . 4 1 15 1 1 17 . 12 . 16 8 . 25 19 9 17 5 14 2 . Failed 223 | . 7 . 8 . . . 13 1 6 . 20 . 21 . . 11 . 6 1 19 . . . . 18 . 8 7 . 22 10 13 22 5 3 2 . Catastrophic 41 | . 2 . . . . . . 1 . . 3 . 2 . . 2 . 1 . 3 . . . . 6 . 4 . . 7 4 4 1 1 . . . Database Lockouts 3 | . 1 . 1 . . . . . . . . . . . . . . . . . . . . . . . . . . 1 . . . . . . . Manual 227 | . 3 . 13 . 1 . 19 2 11 1 15 . 14 . . 12 . 5 . 14 . . . 2 13 . 9 6 1 7 22 12 30 3 12 . . Terminals 295 | . 10 . 21 . . . 23 4 14 3 15 . 14 . . 19 . 5 2 25 . . . . 14 . 12 10 . 18 24 7 30 8 13 4 . Fabricators 56 | . . . . . . . . . . . 11 . 7 . . 3 . . . 5 . . . . 5 . 7 4 . 10 . 1 . . 3 . . Repair Stations 46 | . . . 10 . . . 7 . 6 . 6 . 4 . . . . . . 2 . . . . 5 . . 1 . 3 . 2 . . . . . Recycling Units 21 | . . . . . . . . . . . 2 . . . . 3 . . . . . . . . 1 . 3 . . 5 . 7 . . . . . Scanalyzers 44 | . . . 9 . . . 9 . . . . . 6 . . . . . . . . . . . 2 . 2 . . 4 3 3 6 . . . . Garrison Access 36 | . . . . . . . 3 . 2 . 2 . 1 . . . . 5 . 2 . . . . 3 . . . . 8 2 2 3 2 1 . . Terminal Hacks 91 | . 2 1 7 . 5 . 5 3 1 3 2 . 1 . . 2 . 1 1 7 1 1 17 . 1 . 4 3 . 2 4 1 2 2 10 2 . Record 10 | . . . . . 4 . . . . . . . . . . . . . . . . . 5 . . . 1 . . . . . . . . . . Part Schematic 8 | . . . . . . . . . . . . . 1 . . . . . . . . . 4 . . . . . . . 1 . 1 . 1 . . Robot Analysis 6 | . 1 . 1 . . . . . . . . . . . . . . . . . . . 4 . . . . . . . . . . . . . . Prototype ID Bank 10 | . 1 . 2 . . . 2 . . . . . . . . . . . . . . . 4 . . . . . . . . . 1 . . . . Open Door 6 | . . 1 . . . . . 1 . 1 . . . . . . . . . . 1 1 . . . . . . . . . . . . . 1 . Open DSF 1 | . . . . . . . . . . . . . . . . . . . . . . . . . 1 . . . . . . . . . . . . Branch Access Points 7 | . . . 1 . . . . . . . 1 . . . . 1 . . . 1 . . . . . . 1 . . 1 . 1 . . . . . Emergency Access Points 2 | . . . . . . . . . . 1 . . . . . . . . 1 . . . . . . . . . . . . . . . . . . Terminal Index 2 | . . . . . . . . . . . . . . . . . . . . 1 . . . . . . . . . . 1 . . . . . . Fabricator Index 1 | . . . . . . . . . . . 1 . . . . . . . . . . . . . . . . . . . . . . . . . . Scanalyzer Index 1 | . . . . . . . . . . . . . . . . . . . . 1 . . . . . . . . . . . . . . . . . Alert Level 1 | . . . . . . . 1 . . . . . . . . . . . . . . . . . . . . . . . . . . . . . . Unreport Threat 8 | . . . . . . . 1 . . . . . . . . . . . . 3 . . . . . . . . . . . . . . 4 . . Locate Traps 9 | . . . 2 . . . 1 . 1 . . . . . . . . . . . . . . . . . . 1 . 1 1 . . 1 1 . . Dispatch Records 1 | . . . . . . . . . . . . . . . . . . . . . . . . . . . . . . . . . . . 1 . . Recall Investigation 1 | . . . . . . . . . . . . . . . . . . . . . . . . . . . . . . . . . . . 1 . . Recall Extermination 1 | . . . . . . . . . . . . . . . . . . . . . . . . . . . . . . . . . . . 1 . . Recall Assault 1 | . . . . . . . . . . . . . . . . . . . . . . . . . . . . . . . . . . . 1 . . Hauler Manifests 1 | . . . 1 . . . . . . . . . . . . . . . . . . . . . . . . . . . . . . . . . . Registered Components 2 | . . . . . . . . . . . . . . . . . . . . 1 . . . . . . . 1 . . . . . . . . . Registered Prototypes 1 | . . . . . . . . . . . . . . . . . . . . . . . . . . . . . . . . . . . . 1 . Zone Layout 6 | . . . . . . . . . . . . . . . . 1 . 1 . . . . . . . . 2 1 . . 1 . . . . . . Garrison Registry 2 | . . . . . . . . 1 . 1 . . . . . . . . . . . . . . . . . . . . . . . . . . . Patrol Navigation 1 | . . . . . . . . 1 . . . . . . . . . . . . . . . . . . . . . . . . . . . . . Proto ID Catalog 2 | . . . . . 1 . . . . . . . . . . . . . . . . . . . . . . . . . . . . 1 . . . Fabricator Hacks 29 | . . . . . . . . . . . 4 . 2 . . 2 . . . 3 . . . . 1 . 5 2 . 8 . . . . 2 . . Network Status 3 | . . . . . . . . . . . . . . . . 1 . . . . . . . . 1 . . 1 . . . . . . . . . Load Schematic 16 | . . . . . . . . . . . 2 . 2 . . 1 . . . 2 . . . . . . 3 1 . 4 . . . . 1 . . Build 10 | . . . . . . . . . . . 2 . . . . . . . . 1 . . . . . . 2 . . 4 . . . . 1 . . Repair Station Hacks 31 | . . . 8 . . . 6 . 6 . 3 . 1 . . . . . . . . . . . 3 . . . . 2 . 2 . . . . . Scan Component 17 | . . . 4 . . . 3 . 3 . 2 . 1 . . . . . . . . . . . 2 . . . . 1 . 1 . . . . . Repair 14 | . . . 4 . . . 3 . 3 . 1 . . . . . . . . . . . . . 1 . . . . 1 . 1 . . . . . Recycling Unit Hacks 5 | . . . . . . . . . . . . . . . . 1 . . . . . . . . . . 1 . . 2 . 1 . . . . . Report Inventory 4 | . . . . . . . . . . . . . . . . 1 . . . . . . . . . . 1 . . 1 . 1 . . . . . Retrieve Components 1 | . . . . . . . . . . . . . . . . . . . . . . . . . . . . . . 1 . . . . . . . Scanalyzer 24 | . . . 8 . . . 6 . . . . . 2 . . . . . . . . . . . . . 2 . . 1 1 1 3 . . . . Insert Component 7 | . . . 3 . . . 2 . . . . . 1 . . . . . . . . . . . . . 1 . . . . . . . . . . Analyze 7 | . . . 3 . . . 3 . . . . . . . . . . . . . . . . . . . 1 . . . . . . . . . . Retrieve Study 10 | . . . 2 . . . 1 . . . . . 1 . . . . . . . . . . . . . . . . 1 1 1 3 . . . . Garrison Access Hacks 26 | . . . . . . . 1 . 1 . 1 . 1 . . . . 2 . 2 . . . . 2 . . . . 8 2 2 1 2 1 . . Unlock Access 4 | . . . . . . . 1 . 1 . 1 . . . . . . 1 . . . . . . . . . . . . . . . . . . . Seal Access 11 | . . . . . . . . . . . . . 1 . . . . . . 1 . . . . 1 . . . . 4 1 1 . 1 1 . . Coupler Status 11 | . . . . . . . . . . . . . . . . . . 1 . 1 . . . . 1 . . . . 4 1 1 1 1 . . . Unauthorized Hacks 91 | . . . 8 . . . 11 . 8 . 6 . 4 . . 9 . 1 . 3 . . . . 5 . 4 3 . 2 12 2 11 1 1 . . Terminals 64 | . . . 8 . . . 10 . 7 . 2 . 3 . . 6 . . . 2 . . . . 1 . 1 3 . . 11 1 8 1 . . . Track 5 | . . . . . . . 1 . . . . . . . . . . . . . . . . . . . . 1 . . 3 . . . . . . Assimilate 8 | . . . . . . . 1 . . . . . . . . 2 . . . . . . . . 1 . . 1 . . 1 1 1 . . . . Botnet 21 | . . . 2 . . . 2 . 2 . 2 . 2 . . 2 . . . 2 . . . . . . 1 1 . . 2 . 2 1 . . . Detonate 2 | . . . . . . . . . . . . . . . . 2 . . . . . . . . . . . . . . . . . . . . . Operators 5 | . . . 1 . . . 1 . 1 . . . 1 . . . . . . . . . . . . . . . . . 1 . . . . . . Skim 23 | . . . 5 . . . 5 . 4 . . . . . . . . . . . . . . . . . . . . . 4 . 5 . . . . Fabricators 11 | . . . . . . . . . . . 2 . 1 . . 1 . . . 1 . . . . 2 . 2 . . 1 . . . . 1 . . Report 1 | . . . . . . . . . . . . . . . . . . . . . . . . . 1 . . . . . . . . . . . . Prioritize 3 | . . . . . . . . . . . 1 . . . . . . . . . . . . . . . 1 . . . . . . . 1 . . Liberate 1 | . . . . . . . . . . . . . 1 . . . . . . . . . . . . . . . . . . . . . . . . Haulers 3 | . . . . . . . . . . . 1 . . . . . . . . . . . . . 1 . . . . 1 . . . . . . . Recompile 3 | . . . . . . . . . . . . . . . . 1 . . . 1 . . . . . . 1 . . . . . . . . . . Repair Stations . | . . . . . . . . . . . . . . . . . . . . . . . . . . . . . . . . . . . . . . Recycling Units 8 | . . . . . . . . . . . 2 . . . . 2 . . . . . . . . 1 . 1 . . 1 . 1 . . . . . Reject 1 | . . . . . . . . . . . . . . . . 1 . . . . . . . . . . . . . . . . . . . . . Recyclers 4 | . . . . . . . . . . . 1 . . . . . . . . . . . . . 1 . 1 . . . . 1 . . . . . Mask 3 | . . . . . . . . . . . 1 . . . . 1 . . . . . . . . . . . . . 1 . . . . . . . Scanalyzers 2 | . . . . . . . . . . . . . . . . . . . . . . . . . . . . . . . 1 . 1 . . . . Researchers 2 | . . . . . . . . . . . . . . . . . . . . . . . . . . . . . . . 1 . 1 . . . . Garrison Access 6 | . . . . . . . 1 . 1 . . . . . . . . 1 . . . . . . 1 . . . . . . . 2 . . . . Restock 1 | . . . . . . . . . . . . . . . . . . . . . . . . . . . . . . . . . 1 . . . . Reprogram 3 | . . . . . . . 1 . 1 . . . . . . . . 1 . . . . . . . . . . . . . . . . . . . Eject 2 | . . . . . . . . . . . . . . . . . . . . . . . . . 1 . . . . . . . 1 . . . . Data Cores Recovered 2 | . . . . . . . . . . . . . 1 . . . . 1 . . . . . . . . . . . . . . . . . . . Used . | . . . . . . . . . . . . . . . . . . . . . . . . . . . . . . . . . . . . . . Hacking Detections 165 | . 3 . 10 . . . 12 2 6 2 12 . 9 . . 6 . 3 1 11 . . . . 12 . 9 6 . 19 12 8 11 5 4 2 . Full Trace Events 15 | . . . . . . . . . 1 . 2 . 4 . . . . . . . . . . . 2 . . . . 2 2 1 . . 1 . . Feedback Events . | . . . . . . . . . . . . . . . . . . . . . . . . . . . . . . . . . . . . . . Feedback Blocked . | . . . . . . . . . . . . . . . . . . . . . . . . . . . . . . . . . . . . . . Robot Schematics Acquired 56 | . . . . . . . . . . . . . . . . . . . . . . . . . . . . . . . 56 . . . . . . Robots Built . | . . . . . . . . . . . . . . . . . . . . . . . . . . . . . . . . . . . . . . Authchips . | . . . . . . . . . . . . . . . . . . . . . . . . . . . . . . . . . . . . . . Time . | . . . . . . . . . . . . . . . . . . . . . . . . . . . . . . . . . . . . . . Total Robot Build Rating . | . . . . . . . . . . . . . . . . . . . . . . . . . . . . . . . . . . . . . . Part Schematics Acquired 40 | . . . 3 . . . 2 . . . . . 1 . . . . . . . . . 4 . . . 1 . . . 12 . 1 15 1 . . Parts Built 13 | . . . . . . . . . . . 4 . . . . . . . . 2 . . . . . . 2 . . 4 . . . . 1 . . Authchips 7 | . . . . . . . . . . . . . . . . . . . . 1 . . . . . . 2 . . 4 . . . . . . . Time 575 | . . . . . . . . . . . 128 . . . . . . . . 42 . . . . . . 156 . . 224 . . . . 25 . . Total Part Build Rating 91 | . . . . . . . . . . . 32 . . . . . . . . 16 . . . . . . 14 . . 24 . . . . 5 . . Part Studies Acquired 10 | . . . 2 . . . 1 . . . . . 1 . . . . . . . . . . . . . . . . 1 1 1 3 . . . . Parts Repaired 14 | . . . 4 . . . 3 . 3 . 1 . . . . . . . . . . . . . 1 . . . . 1 . 1 . . . . . Time 737 | . . . 120 . . . 170 . 216 . 34 . . . . . . . . . . . . . 80 . . . . 28 . 89 . . . . . Parts Recycled . | . . . . . . . . . . . . . . . . . . . . . . . . . . . . . . . . . . . . . . Recycled Matter . | . . . . . . . . . . . . . . . . . . . . . . . . . . . . . . . . . . . . . . Retrieved Matter . | . . . . . . . . . . . . . . . . . . . . . . . . . . . . . . . . . . . . . . Retrieved Components 3 | . . . . . . . . . . . . . . . . . . . . . . . . . . . . . . 3 . . . . . . . Parts Scanalyzed 7 | . . . 3 . . . 2 . . . . . 1 . . . . . . . . . . . . . 1 . . . . . . . . . . Part Schematics Acquired 6 | . . . 3 . . . 2 . . . . . . . . . . . . . . . . . . . 1 . . . . . . . . . . Parts Damaged 1 | . . . . . . . . . . . . . 1 . . . . . . . . . . . . . . . . . . . . . . . . Bothacking | -11 -10 -10 -9 -9 -9 -8 -8 -8 -8 -8 -7 -7 -7 -7 -7 -6 -6 -6 -6 -5 -5 -5 -5 -4 -4 -4 -4 -4 -4 -3 -3 -2 -2 -2 -1 -1 -1 ------------ Run | Yrd Mat Min Mat Min Exi Min Mat Gar Mat Gar Fac Was Fac Low Low Fac Was Fac Gar Fac Upp Upp Zhi Pro Fac Was Fac Arm Lab Res Tes Res Qua Frg Acc Com Ac0 Used RIF Installer 5 | . . . . . . . . 2 . 2 . . . . . . . . 1 . . . . . . . . . . . . . . . . . . Coupler Efficiency 1 | . . . . . . . . . . . . . . . . . . . 1 . . . . . . . . . . . . . . . . . . Zone Cloak 2 | . . . . . . . . 1 . 1 . . . . . . . . . . . . . . . . . . . . . . . . . . . Robot Detection 1 | . . . . . . . . . . 1 . . . . . . . . . . . . . . . . . . . . . . . . . . . Robots Hacked 55 | . . . . . 4 . . 2 4 6 9 . 9 . . 1 . . . 1 . . . . 4 . 1 . . 1 10 3 . . . . . Non-combat 26 | . . . . . 3 . . . . . 2 . 8 . . 1 . . . 1 . . . . 4 . 1 . . 1 2 3 . . . . . Combat 29 | . . . . . 1 . . 2 4 6 7 . 1 . . . . . . . . . . . . . . . . . 8 . . . . . . Robot Hacks Applied 60 | . . . . . 4 . . 2 4 6 9 . 10 . . 2 . . . 4 . . . . 4 . 1 . . 1 10 3 . . . . . parse_system 7 | . . . . . 4 . . . . 1 . . 1 . . . . . . . . . . . . . . . . . 1 . . . . . . no_distress 1 | . . . . . . . . . . . . . . . . . . . . . . . . . . . . . . . 1 . . . . . . generate_echo 1 | . . . . . . . . . . . . . . . . 1 . . . . . . . . . . . . . . . . . . . . . find_chute 6 | . . . . . . . . . . . 2 . . . . . . . . . . . . . 4 . . . . . . . . . . . . drop_inventory 4 | . . . . . . . . . . . . . 2 . . 1 . . . . . . . . . . . . . . . 1 . . . . . find_recycling 2 | . . . . . . . . . . . . . . . . . . . . . . . . . . . 1 . . 1 . . . . . . . purge_threat 3 | . . . . . . . . . . . . . . . . . . . . 3 . . . . . . . . . . . . . . . . . reprogram_traps 1 | . . . . . . . . . . . . . 1 . . . . . . . . . . . . . . . . . . . . . . . . block_reporting 3 | . . . . . . . . . . . . . 1 . . . . . . . . . . . . . . . . . . 2 . . . . . redirect_shields 1 | . . . . . . . . . . . . . 1 . . . . . . . . . . . . . . . . . . . . . . . . disable_scanner 6 | . . . . . . . . . . . . . . . . . . . . . . . . . . . . . . . 6 . . . . . . focus_fire 1 | . . . . . . . . . 1 . . . . . . . . . . . . . . . . . . . . . . . . . . . . scatter_targeting 2 | . . . . . . . . . . . 2 . . . . . . . . . . . . . . . . . . . . . . . . . . amplify_resonance 5 | . . . . . . . . . . 2 . . 2 . . . . . . . . . . . . . . . . . 1 . . . . . . reboot_system 2 | . . . . . . . . 1 . . 1 . . . . . . . . . . . . . . . . . . . . . . . . . . overwrite_iff 4 | . . . . . . . . . 1 2 1 . . . . . . . . . . . . . . . . . . . . . . . . . . formatsys_low 3 | . . . . . . . . . . . . . 1 . . . . . . 1 . . . . . . . . . . 1 . . . . . . formatsys_high 8 | . . . . . . . . 1 2 1 3 . 1 . . . . . . . . . . . . . . . . . . . . . . . . Relay Couplers Released 63 | . . . . . . . . 16 . 11 . . 4 . . . . . 22 . . . . . 3 . . . . 2 1 . 4 . . . . Ejected 7 | . . . . . . . . . . . . . . . . . . . . . . . . . 3 . . . . . . . 4 . . . . Machine Destruction 52 | . . . . . . . . 16 . 11 . . . . . . . . 22 . . . . . . . . . . 2 1 . . . . . . Programmers 4 | . . . . . . . . . . . . . 4 . . . . . . . . . . . . . . . . . . . . . . . . Attached 15 | . . . . . . . . 1 2 3 2 . 2 1 . . . . 1 1 . . . . . . . . . . 2 . . . . . . Fabnet Peak Effective % . | . . . . . . . . . . . . . . . . . . . . . . . . . . . . . . . . . . . . . . Robots Rewired 11 | . . . . . . . . . . . . . . . . . . . 3 . . . . . . . . 7 . . 1 . . . . . . Allies Hacked 3 | . . . . . . . . . . 2 . . 1 . . . . . . . . . . . . . . . . . . . . . . . . Hacks Repelled 1 | . . . . . . . . . . . . . . . . . . . . . . . . . . . . . . . 1 . . . . . . Allies | -11 -10 -10 -9 -9 -9 -8 -8 -8 -8 -8 -7 -7 -7 -7 -7 -6 -6 -6 -6 -5 -5 -5 -5 -4 -4 -4 -4 -4 -4 -3 -3 -2 -2 -2 -1 -1 -1 -------- Run | Yrd Mat Min Mat Min Exi Min Mat Gar Mat Gar Fac Was Fac Low Low Fac Was Fac Gar Fac Upp Upp Zhi Pro Fac Was Fac Arm Lab Res Tes Res Qua Frg Acc Com Ac0 Total Allies 77 | . . 3 . . . . 2 3 6 5 4 1 7 . 1 2 18 2 5 1 . . . . 1 . . 8 . . 3 1 1 . 3 . . Largest Group 18 | . . 3 3 . . . 2 4 4 4 3 1 5 2 1 1 18 15 11 6 . . . . 1 1 . 4 . . 1 1 2 . 3 . . Highest-Rated Group 638 | . . 40 40 . . . 10 66 64 83 80 16 137 74 13 26 638 513 359 252 . . . . 26 26 . 256 . . 154 10 20 . 379 . . Highest-Rated Ally 154 | . . 16 16 . . . 5 31 16 39 32 16 106 37 13 26 50 46 80 80 . . . . 26 26 . 64 . . 154 10 10 . 135 . . Total Orders 28 | . . . . . . . . 1 1 . 2 . 1 . . . . . . . . . . . . . . . . . 13 10 . . . . . STAY 8 | . . . . . . . . 1 1 . 1 . . . . . . . . . . . . . . . . . . . 4 1 . . . . . FOLLOW 3 | . . . . . . . . . . . 1 . . . . . . . . . . . . . . . . . . . 2 . . . . . . DROP 1 | . . . . . . . . . . . . . 1 . . . . . . . . . . . . . . . . . . . . . . . . EXPLORE 2 | . . . . . . . . . . . . . . . . . . . . . . . . . . . . . . . . 2 . . . . . RETURN 14 | . . . . . . . . . . . . . . . . . . . . . . . . . . . . . . . 7 7 . . . . . Ally Attacks 696 | . . . 47 . . . 1 19 15 35 11 . 50 1 2 . 118 133 104 17 . . . . . . . . . . 129 14 . . . . . Total Damage 15755 | . . . 477 . . . 10 161 248 494 415 . 1617 37 . . 3582 2004 2638 416 . . . . . . . . . . 3414 242 . . . . . Kills 102 | . . . 11 . . . . . 2 4 4 . 16 . . . 6 17 20 5 . . . . . . . . . . 17 . . . . . . Allies Corrupted 1 | . . . . . . . . . . . . . . . . . . . . . . . . . . . . . . . 1 . . . . . . Allies Melted . | . . . . . . . . . . . . . . . . . . . . . . . . . . . . . . . . . . . . . . Turrets Deployed 1 | . . . . . . . . . . . . . 1 . . . . . . . . . . . . . . . . . . . . . . . . Field Lobotomies 5 | . . . . . . . . . . . . . 4 . 1 . . . . . . . . . . . . . . . . . . . . . . Intel | -11 -10 -10 -9 -9 -9 -8 -8 -8 -8 -8 -7 -7 -7 -7 -7 -6 -6 -6 -6 -5 -5 -5 -5 -4 -4 -4 -4 -4 -4 -3 -3 -2 -2 -2 -1 -1 -1 ------- Run | Yrd Mat Min Mat Min Exi Min Mat Gar Mat Gar Fac Was Fac Low Low Fac Was Fac Gar Fac Upp Upp Zhi Pro Fac Was Fac Arm Lab Res Tes Res Qua Frg Acc Com Ac0 Active Infowar (turns) 21028 | 25 1140 899 9 . . . . . 349 . 993 191 1006 . . 770 165 472 320 390 86 215 49 131 489 26 408 303 4 1117 1395 605 1685 1744 779 4600 663 Optics 1744 | . . . . . . . . . . . 261 191 111 . . . . . . . . . . . . . . . . . 719 . . . . . 462 Sensors 7357 | . . . . . . . . . . . . . . . . 457 154 360 . 390 86 215 49 119 489 26 379 300 4 1117 1178 236 1595 203 . . . A.S.S. 5505 | . . . . . . . . . . . . . . . . . . . . . . . . . . . . . . . . . . . 715 4600 190 Terrain 568 | . . . . . . . . . . . . . . . . . . . . . . . . . . . . . . 1 . 59 . . . . 508 Structural 2962 | . . . . . . . . . . . . . . . . . . . . . . . . . 437 26 265 298 4 939 507 179 307 . . . . Traps 146 | . . . . . . . . . . . . . . . . . . . . . . . . . 146 . . . . . . . . . . . . Seismic 2100 | 25 1140 899 9 . . . . . . . . . . . . . . . . . . . . . . . . . . . . . 27 . . . . T.N.C. 2308 | . . . . . . . . . . . 115 191 983 . . 498 . . . . . . . . 84 26 408 3 . . . . . . . . . Machine Analysis 1295 | . . . . . . . . . . . 311 191 793 . . . . . . . . . . . . . . . . . . . . . . . . Cloaking 3572 | . . . . . . . . . . . . . . . . . . . . . . . . . . . . . . . . . 74 1466 401 1631 . Jamming 9462 | . . . . . . . . . 349 . 682 . 184 . . . 11 112 320 . . . . 12 174 . 143 303 4 1105 1308 572 1444 1189 519 1031 . ECM 2 | . . . . . . . . . . . . . . . . . . . . . . . . . . . . . . . . . 1 1 . . . Robot Analysis Total 102 | . 1 . 1 . . . . . . . . . . . . . . . . . . . 4 . . . . . . . 96 . . . . . . Derelict Logs Recovered 9 | . . 2 . 2 . . . . . . . . . 2 . . . . . . . 1 . 2 . . . . . . . . . . . . . Drone Launches 18 | . . . . . . . . . . . . . . . . . . . . . . . . . . . . . . . 11 7 . . . . . Drone Recoveries 15 | . . . . . . . . . . . . . . . . . . . . . . . . . . . . . . . 9 6 . . . . . Exploration | -11 -10 -10 -9 -9 -9 -8 -8 -8 -8 -8 -7 -7 -7 -7 -7 -6 -6 -6 -6 -5 -5 -5 -5 -4 -4 -4 -4 -4 -4 -3 -3 -2 -2 -2 -1 -1 -1 ------------- Run | Yrd Mat Min Mat Min Exi Min Mat Gar Mat Gar Fac Was Fac Low Low Fac Was Fac Gar Fac Upp Upp Zhi Pro Fac Was Fac Arm Lab Res Tes Res Qua Frg Acc Com Ac0 Turns Passed 37937 | 99 1140 899 1344 1183 2179 1859 2006 1218 965 1209 2031 191 1399 404 7 1104 295 473 1216 413 86 215 49 131 489 26 408 303 4 1121 2277 664 1957 2525 779 4600 669 Spaces Moved 34671 | 53 378 607 480 481 802 959 775 534 427 563 1255 213 1088 460 13 1063 331 639 1535 822 318 764 156 596 1255 88 996 724 16 2811 2965 1181 3065 2639 812 2575 232 Core 29 | 6 . . . . . . . . . . . . . . . . . . . . . . . . . . . . . . . . . 1 . 12 10 Treads 7292 | 47 166 . 397 481 802 560 775 534 302 563 931 . 50 . . . . . . . . . . . . . . . . . . . . . . 1462 222 Legs 616 | . . . . . . 399 . . . . . . 217 . . . . . . . . . . . . . . . . . . . . . . . . Wheels 1781 | . 212 607 83 . . . . . 125 . . . . . . . . . . . . . . . . . . . . . . . . . . 754 . Hover 16340 | . . . . . . . . . . . 324 213 821 460 13 765 . . . . . . . . . . . . . 2736 2965 1181 3065 2638 812 347 . Flight 8613 | . . . . . . . . . . . . . . . . 298 331 639 1535 822 318 764 156 596 1255 88 996 724 16 75 . . . . . . . Fastest Speed 13 | 50 130 145 130 240 160 45 145 145 145 152 71 68 40 30 30 21 19 19 21 19 19 19 19 13 19 24 17 17 24 16 15 25 16 16 30 32 50 Average Speed 67 | 147 148 145 174 240 222 166 168 145 190 152 131 69 71 62 31 49 20 32 23 35 19 19 19 18 23 24 22 23 24 22 29 29 33 31 31 124 136 Slowest Speed 1650 | 160 240 145 240 240 240 232 232 148 235 152 154 71 170 111 47 235 21 90 100 103 19 19 19 19 98 24 24 24 24 150 83 88 86 1400 32 1650 140 Overloaded Moves 511 | . . . . . . 14 . . . . . . 121 13 12 2 . . . . . . . 13 2 . 10 39 . 55 206 . 3 21 . . . Propulsion Burnouts . | . . . . . . . . . . . . . . . . . . . . . . . . . . . . . . . . . . . . . . Robots Hopped 47 | . . . . . . . . . . . . . . . . 1 2 2 3 3 . . . 1 11 2 17 5 . . . . . . . . . Potential Cave-ins . | . . . . . . . . . . . . . . . . . . . . . . . . . . . . . . . . . . . . . . Cave-ins Triggered . | . . . . . . . . . . . . . . . . . . . . . . . . . . . . . . . . . . . . . . Teleports 4 | . . . . . . . . . . . . . . . . . . . . . . . . . . . . . . . . 1 . 1 . 1 1 Exploration Rate (%) 55 | 4 74 98 50 92 91 95 79 73 32 65 33 89 21 62 7 21 92 17 90 21 53 69 60 74 42 83 24 49 12 67 97 35 97 37 18 66 32 Regions Visited 37 Branch Regions 17 Pre-discovered Areas 11 | . . 1 2 . 1 . 2 . . . . . . . . . . . . . . . 3 . . . . . . . . . 2 . . . . Known Exits Taken 21 | . . . 1 . . 1 1 . 1 . . . 1 . . . . 1 . 1 1 1 1 1 . . 1 1 1 1 1 1 1 1 1 1 . Unknown Exits Taken 7 | 1 1 1 . 1 1 . . . . . . . . 1 1 . . . . . . . . . . . . . . . . . . . . . . Scrap Searched 11 | . . 1 . 1 . 1 . . . . . . . 2 . . . . . . 3 1 . 2 . . . . . . . . . . . . . Spaces Dug 187 | . . . . . 1 . . . 1 8 4 . 12 14 . 4 . . 11 7 . 3 . 3 11 . 3 3 . 26 7 15 12 11 19 10 2 Terrain Destroyed 1170 | . . . 38 50 14 49 33 99 1 41 4 . 93 14 . 152 . . 107 7 88 3 . 3 11 . 3 4 . 26 14 33 35 26 48 15 159 Melee 148 | . . . . . 1 . . . 1 8 4 . 12 13 . 3 . . 11 7 . 3 . 3 11 . 3 2 . 26 7 7 6 8 10 2 . Projectile 252 | . . . 2 . . . . . . 6 . . 4 1 . 11 . . . . . . . . . . . . . . 4 21 11 6 38 13 135 AOE 730 | . . . 36 50 13 49 33 99 . 26 . . 76 . . 138 . . 96 . 88 . . . . . . . . . . 4 10 12 . . . Terrain Rammed . | . . . . . . . . . . . . . . . . . . . . . . . . . . . . . . . . . . . . . . Walls Destroyed . | . . . . . . . . . . . . . . . . . . . . . . . . . . . . . . . . . . . . . . Machines Disabled . | . . . . . . . . . . . . . . . . . . . . . . . . . . . . . . . . . . . . . . Actions | -11 -10 -10 -9 -9 -9 -8 -8 -8 -8 -8 -7 -7 -7 -7 -7 -6 -6 -6 -6 -5 -5 -5 -5 -4 -4 -4 -4 -4 -4 -3 -3 -2 -2 -2 -1 -1 -1 --------- Run | Yrd Mat Min Mat Min Exi Min Mat Gar Mat Gar Fac Was Fac Low Low Fac Was Fac Gar Fac Upp Upp Zhi Pro Fac Was Fac Arm Lab Res Tes Res Qua Frg Acc Com Ac0 Total 46565 | 66 866 624 837 496 1057 1099 1265 864 532 837 1561 246 1553 549 13 1487 544 885 2311 930 335 830 172 608 1402 90 1128 820 15 3246 4133 1438 3925 4193 1248 3881 479 Wait 7418 | . 426 6 187 . 99 8 315 207 45 146 191 20 226 67 . 219 187 221 553 62 12 61 . 1 101 5 78 37 . 218 668 115 532 1022 301 1053 29 Move 34545 | 52 377 606 479 480 801 958 775 533 426 562 1255 212 1087 459 12 1061 327 634 1529 815 317 763 155 593 1233 84 962 714 15 2810 2965 1180 3064 2634 811 2574 231 Hop 42 | . . . . . . . . . . . . . . . . 1 1 2 2 3 . . . 1 11 1 16 4 . . . . . . . . . Pick Up 411 | 4 11 6 26 1 22 12 5 10 3 11 9 . 15 1 . 13 2 1 4 5 . . 4 1 6 . 9 6 . 10 41 15 23 74 12 34 15 Fast Attach 321 | 6 . 1 7 . 1 5 5 2 5 1 6 1 22 . . 28 2 4 6 7 . 1 4 2 4 . 5 3 . 40 32 9 37 36 8 21 10 Attach 237 | 1 . . 3 1 10 3 2 4 1 6 5 . 21 2 . 19 2 . 6 7 . . . . 4 . 5 1 . 7 27 9 13 37 8 20 13 Detach 109 | . . . . . 1 2 . . . 1 1 . 16 . . 13 . . 3 4 . . . . . . 3 1 . . 26 5 8 17 5 3 . Swap 392 | . 5 . 18 4 14 14 21 10 10 14 12 3 24 5 . 8 8 7 1 3 2 . 1 2 4 . 14 5 . 11 38 10 15 44 16 24 25 Drop 583 | . . 3 27 . 17 19 12 10 4 10 19 2 24 1 . 23 7 5 7 11 . 1 5 3 6 . 15 7 . 34 58 23 56 104 14 44 12 Fire 1270 | 3 47 2 85 9 56 57 126 62 8 29 17 8 56 1 1 57 4 2 5 4 2 . . . . . 2 18 . 1 173 34 135 58 33 32 143 Melee 891 | . . . . . 36 17 . 22 30 56 45 . 60 13 . 45 4 9 43 9 2 4 3 5 33 . 19 24 . 77 90 38 23 98 39 47 . Ram . | . . . . . . . . . . . . . . . . . . . . . . . . . . . . . . . . . . . . . . Kick 2 | . . . . . . . . . . . . . 2 . . . . . . . . . . . . . . . . . . . . . . . . Crush 15 | . . . 5 1 . 3 4 . . . 1 . . . . . . . . . . . . . . . . . . . . . . . . . 1 Escape Stasis 216 | . . . . . . . . 2 . . . . . . . . . . 118 . . . . . . . . . . . . . 19 69 . 8 . Rewire 71 | . . . . . . 1 . 1 . 1 . . . . . . . . 34 . . . . . . . . . . . 13 . . . . 21 . Trap 42 | . . . . . . . . 1 . . . . . . . . . . . . . . . . . . . . . 38 2 . . . 1 . . Miscellaneous . | . . . . . . . . . . . . . . . . . . . . . . . . . . . . . . . . . . . . . . Route ------- -11/Scrapyard -10/Materials (discovered 3 exits: *Mat x2 / *Min) -10/Mines (discovered 2 exits: *Mat x2) -9/Materials (discovered 6 exits: Mat x3 / *Min x2 / *Sto) -9/Mines (discovered 3 exits: *Mat x2 / *Exi) -9/Exiles (discovered 2 exits: [*Min x2]) -8/Mines (discovered 2 exits: *Mat x2) -8/Materials (discovered 3 exits: *Fac x2 / Gar) -8/Garrison (discovered 3 exits: *Mat x3) -8/Materials (discovered 2 exits: *Fac / Gar) -8/Garrison (discovered 3 exits: *Fac x3) -7/Factory (discovered 4 exits: *Fac / Low x2 / Gar) -7/Waste -7/Factory -7/Lower Caves -7/Lower Caves -6/Factory (discovered 5 exits: *Fac / Low x2 / Ext x2) -6/Waste -6/Factory (discovered 3 exits: *Fac / Low / Gar) -6/Garrison (discovered 3 exits: *Fac x3) -5/Factory (discovered 2 exits: *Upp x2) -5/Upper Caves -5/Upper Caves (discovered 2 exits: *Fac / *Zhi) -5/Zhirov -4/Proximity Caves -4/Factory (discovered 2 exits: *Res / Arm) -4/Waste -4/Factory (discovered 4 exits: *Res / Upp x2 / *Arm) -4/Armory -4/Lab -3/Research (discovered 4 exits: *Res x2 / *Tes x2) -3/Testing -2/Research (discovered 3 exits: *Acc / *Qua x2) -2/Quarantine (discovered 3 exits: *Acc / *Sec / *Frg) -2/Protoforge -1/Access -1/Command (discovered 3 exits: Sur x2 / *Ac0) -1/Access_0 Near Former Tau Ceti IV History --------- Turn | Location | Event 8 | -11/Scrapyard | Discovered new exit (range 15) 100 | -11/Scrapyard | Entered Materials 173 | -10/Materials | Central database locked down 310 | -10/Materials | Build established: Mutant 555 | -10/Materials | Discovered new exit (range 4) 630 | -10/Materials | Discovered new exit (range 14) 884 | -10/Materials | Discovered new exit (range 10) 1240 | -10/Materials | Entered Mines 1243 | -10/Mines | Assisted by bots powering up and referring to "LRC-V3" 1281 | -10/Mines | Learned 2 Materials zone layouts 1287 | -10/Mines | Found a Scrap Suit stashed away for nefarious purposes 1290 | -10/Mines | Found Scrap Suit 1369 | -10/Mines | Discovered new exit (range 3) 1883 | -10/Mines | Met a Derelict shopkeep closing up shop 1952 | -10/Mines | Learned location of Storage (-9) 2044 | -10/Mines | Discovered new exit (range 8) 2103 | -10/Mines | Received a Rocket Launcher from a helpful Derelict 2139 | -10/Mines | Entered Materials 2139 | -9/Materials | Accompanied by 3 allies 2139 | -9/Materials | Evolved 2 slots: Propulsion x1, Utility x1 2140 | -9/Materials | Identified exit to Storage 2147 | -9/Materials | Identified exit to Mines 2405 | -9/Materials | Lost 3 allies 2697 | -9/Materials | Build established: Scavenger-Mutant 2743 | -9/Materials | Repaired Lgt. Treads 2804 | -9/Materials | Repaired Lgt. Armor Plating 2967 | -9/Materials | Learned location of Zion (-7) 3027 | -9/Materials | Learned 4 Recycling zone layouts 3052 | -9/Materials | Central database locked down 3154 | -9/Materials | Identified exit to Materials 3246 | -9/Materials | Learned 2 Materials zone layouts 3255 | -9/Materials | Repaired Corrupted Lgt. Treads 3288 | -9/Materials | Repaired Hvy. Assault Rifle+ 3483 | -9/Materials | Entered Mines 3735 | -9/Mines | Deemed a non-threat by the Exiles lab entrance 3735 | -9/Mines | Discovered new exit (range 5) 3843 | -9/Mines | Learned Materials emergency access door positions 3848 | -9/Mines | Learned Materials terminal intel 4052 | -9/Mines | Discovered exit to Materials (range 11) 4057 | -9/Mines | Discovered exit to Materials (range 14) 4666 | -9/Mines | Entered Exiles 4702 | -9/Exiles | Discovered new exit (range 15) 4731 | -9/Exiles | Met 8R-AWN 4879 | -9/Exiles | Met EX-HEX 4948 | -9/Exiles | Met EX-BIN 5024 | -9/Exiles | Met EX-DEC 5157 | -9/Exiles | Aligned with FarCom system 5159 | -9/Exiles | Given EX-Vault access code 5215 | -9/Exiles | Opened EX-Vault 5234 | -9/Exiles | Found Chronowheel 5244 | -9/Exiles | Found Potential Leg 5248 | -9/Exiles | Found Potential Leg 5252 | -9/Exiles | Found Field Lobotomy Kit 5303 | -9/Exiles | Warned to stay clear of 0b10 Research branches 5493 | -9/Exiles | Discovered new exit (range 14) 5818 | -9/Exiles | Attacked by the Exiles 5995 | -9/Exiles | Destroyed 8R-AWN 5998 | -9/Exiles | Found 8R-AWN's Boregun 6001 | -9/Exiles | Found 8R-AWN's Boregun 6012 | -9/Exiles | Lost 7 parts (1p3n3u) 6348 | -9/Exiles | Destroyed EX-DEC 6365 | -9/Exiles | Destroyed EX-BIN 6402 | -9/Exiles | Found Deploy-a-Sentry 6417 | -9/Exiles | Found System Purifier 6443 | -9/Exiles | Destroyed EX-HEX 6843 | -9/Exiles | Activated Chronowheel 6845 | -9/Exiles | Stole four prototypes: Potential Leg, Chronowheel, Field Lobotomy Kit, Deploy-a-Sentry 6845 | -9/Exiles | Entered Mines 6884 | -8/Mines | Discovered exit to Materials (range 11) 6900 | -8/Mines | Core integrity fell below 50% 6926 | -8/Mines | CL-ANK came to Exiles' defense 7131 | -8/Mines | Build established: Mutant 7392 | -8/Mines | Discovered exit to Materials (range 9) 7397 | -8/Mines | Destroyed CL-ANK 7410 | -8/Mines | Found Prototype Impact Weapon 7410 | -8/Mines | Identified CL-ANK's Mallet 7439 | -8/Mines | Found Prototype Processor 7583 | -8/Mines | Identified Exp. Melee Analysis Suite 7707 | -8/Mines | Build established: Scavenger-Mutant 8704 | -8/Mines | Entered Materials 8704 | -8/Materials | Evolved 2 slots: Propulsion x1, Utility x1 8705 | -8/Materials | Identified exit to Factory 8707 | -8/Materials | Loaded intel: 12 terminal locations 9228 | -8/Materials | Learned 4 Lower Caves zone layouts 9263 | -8/Materials | Learned location of 1 exit from Recycling 9287 | -8/Materials | Learned 4 Recycling zone layouts 9364 | -8/Materials | Learned Recycling recycling unit intel 9798 | -8/Materials | Repaired Biometal Medium Treads 9872 | -8/Materials | Repaired Biometal Medium Treads 10525 | -8/Materials | Discovered exit to Factory (range 8) 10597 | -8/Materials | Repaired Biometal Medium Treads 10610 | -8/Materials | Garrison activated, responded to threat 10665 | -8/Materials | Identified exit to Garrison 10710 | -8/Materials | Entered Garrison 10710 | -8/Garrison | Accompanied by 2 allies 10822 | -8/Garrison | Phase Generator disabled 10883 | -8/Garrison | Garrison Relay disabled 10894 | -8/Garrison | Triggered checkpoint 10904 | -8/Garrison | Discovered new exit (range 55) 10904 | -8/Garrison | Discovered new exit (range 52) 10904 | -8/Garrison | Discovered new exit (range 64) 10923 | -8/Garrison | Rescued a captive Derelict 10925 | -8/Garrison | Rescued a captive Derelict 10982 | -8/Garrison | Triggered checkpoint 11104 | -8/Garrison | Triggered checkpoint 11146 | -8/Garrison | Garrison Relay disabled 11154 | -8/Garrison | Garrison Relay disabled 11169 | -8/Garrison | Installed Relay Interface Framework 11348 | -8/Garrison | Triggered checkpoint 11530 | -8/Garrison | Triggered checkpoint 11612 | -8/Garrison | Garrison Relay disabled 11694 | -8/Garrison | Expanded RIF knowledge: Zone Cloak 11928 | -8/Garrison | Entered Materials 12023 | -8/Materials | Build established: Bothacker-Mutant 12123 | -8/Materials | Discovered exit to Factory (range 16) 12415 | -8/Materials | Repaired Biometal Medium Treads? 12543 | -8/Materials | Repaired Exp. Weapon Shielding 12612 | -8/Materials | Repaired Biometal Medium Treads? 12805 | -8/Materials | Identified exit to Garrison 12893 | -8/Materials | Entered Garrison 12893 | -8/Garrison | Accompanied by 4 allies 13005 | -8/Garrison | Triggered checkpoint 13012 | -8/Garrison | Discovered exit to Factory (range 47) 13012 | -8/Garrison | Discovered exit to Factory (range 67) 13012 | -8/Garrison | Discovered exit to Factory (range 33) 13044 | -8/Garrison | Garrison Relay disabled 13129 | -8/Garrison | Triggered checkpoint 13229 | -8/Garrison | Expanded RIF knowledge: Zone Cloak 13262 | -8/Garrison | Triggered checkpoint 13395 | -8/Garrison | Rescued a captive Derelict 13397 | -8/Garrison | Rescued a captive Derelict 13411 | -8/Garrison | Garrison Relay disabled 13495 | -8/Garrison | Triggered checkpoint 13594 | -8/Garrison | Expanded RIF knowledge: Robot Detection 13659 | -8/Garrison | Triggered checkpoint 13672 | -8/Garrison | P-60 Hacker assimilated allied Trooper 3c 13688 | -8/Garrison | Core integrity fell below 50% 13741 | -8/Garrison | Garrison Relay disabled 14044 | -8/Garrison | Build established: Bothacker-Gladiator 14102 | -8/Garrison | Entered Factory 14102 | -7/Factory | Evolved 2 slots: Propulsion x1, Utility x1 14103 | -7/Factory | Identified exit to Lower Caves 14251 | -7/Factory | Identified exit to Garrison 14522 | -7/Factory | Build established: Bothacker-Mutant 14697 | -7/Factory | Discovered new exit (range 5) 15076 | -7/Factory | Fabricated Cmb. Antigrav System? 15699 | -7/Factory | Fabricated Cmb. Antigrav System? 15971 | -7/Factory | Repaired Biometal Medium Treads 15975 | -7/Factory | Watched by a mysterious "MATRIX" hacker 16133 | -7/Factory | Sucked down chute 16133 | -7/Factory | Entered Waste 16133 | -7/Waste | The area was eerily silent 16133 | -7/Waste | Met up with 1 ally sucked down the chute earlier 16172 | -7/Waste | Build established: Machinist-Mutant 16214 | -7/Waste | Discovered new exit (range 13) 16324 | -7/Waste | Entered Factory 16324 | -7/Factory | Accompanied by 1 ally 16724 | -7/Factory | Search patrols dispatched 16820 | -7/Factory | Destroyed 7 combat bots 16933 | -7/Factory | Discovered exit to Lower Caves (range 15) 17059 | -7/Factory | DAS Turret deployed 17310 | -7/Factory | Cargo convoy interrupted 17361 | -7/Factory | Core integrity fell below 50% 17401 | -7/Factory | System corruption reached 10% 17404 | -7/Factory | Core integrity fell below 20% 17416 | -7/Factory | Destroyed 7 combat bots 17421 | -7/Factory | Assimilated P-60 Hacker with FLK Orb 17424 | -7/Factory | Assimilated H-55 Commando with FLK Orb 17427 | -7/Factory | Assimilated H-55 Commando with FLK Orb 17430 | -7/Factory | Assimilated P-60 Hacker with FLK Orb 17431 | -7/Factory | Lost 12 parts (2p5n4u1w) 17487 | -7/Factory | Found Prototype Launcher 17487 | -7/Factory | Identified Scatter Rocket Array 17504 | -7/Factory | Found Scatter Rocket Array 17509 | -7/Factory | Found Scatter Rocket Array 17663 | -7/Factory | Build established: Mutant 17723 | -7/Factory | Entered Lower Caves 17723 | -7/Lower Caves | Accompanied by 2 allies 17729 | -7/Lower Caves | Learned Factory terminal intel 18094 | -7/Lower Caves | Learned 4 Factory zone layouts 18122 | -7/Lower Caves | Discovered new exit (range 8) 18127 | -7/Lower Caves | Entered another Lower Caves area 18127 | -7/Lower Caves | Assimilated G-47 Trooper with FLK Orb 18132 | -7/Lower Caves | Discovered new exit (range 7) 18134 | -7/Lower Caves | Entered Factory 18134 | -6/Factory | Evolved 2 slots: Power x1, Propulsion x1 18136 | -6/Factory | Loaded intel: 28 terminal locations 18152 | -6/Factory | Discovered new exit (range 16) 18162 | -6/Factory | Identified exit to Lower Caves 18162 | -6/Factory | Identified exit to Extension 18891 | -6/Factory | Build established: Scavenger-Mutant 19015 | -6/Factory | Cargo convoy interrupted 19026 | -6/Factory | Core integrity fell below 50% 19051 | -6/Factory | Destroyed 10 combat bots 19055 | -6/Factory | Lost 8 parts (1p5n1u1w) 19066 | -6/Factory | Found Prototype Launcher 19066 | -6/Factory | Identified Com. Tesla Bomb Launcher 19068 | -6/Factory | Found Com. Tesla Bomb Launcher 19238 | -6/Factory | Manually triggered Chute Trap 19238 | -6/Factory | Sucked down chute 19238 | -6/Factory | Entered Waste 19246 | -6/Waste | Spotted C-40 Crusher 19248 | -6/Waste | Spotted C-40 Crusher 19248 | -6/Waste | Spotted C-40 Crusher 19250 | -6/Waste | Spotted C-40 Crusher 19253 | -6/Waste | 1 allies followed down the chute 19253 | -6/Waste | Discovered new exit (range 15) 19254 | -6/Waste | Spotted C-40 Crusher 19266 | -6/Waste | Spotted C-40 Crusher 19276 | -6/Waste | Warlord forces began an assault 19312 | -6/Waste | Allies destroyed C-40 Crusher 19316 | -6/Waste | Allies destroyed C-40 Crusher 19328 | -6/Waste | Allies destroyed C-40 Crusher 19330 | -6/Waste | Destroyed C-40 Crusher 19356 | -6/Waste | Build established: Scavenger-Sprinter 19424 | -6/Waste | Found Damper Plating 19533 | -6/Waste | Entered Factory 19533 | -6/Factory | Accompanied by 15 allies 19636 | -6/Factory | Discovered new exit (range 8) 19642 | -6/Factory | Identified exit to Factory 19859 | -6/Factory | Garrison activated, responded to threat 19941 | -6/Factory | Discovered exit to Lower Caves (range 13) 19946 | -6/Factory | Identified exit to Garrison 20006 | -6/Factory | Entered Garrison 20006 | -6/Garrison | Accompanied by 11 allies 20010 | -6/Garrison | Build established: Sprinter 20034 | -6/Garrison | Triggered checkpoint 20054 | -6/Garrison | Expanded RIF knowledge: Coupler Efficiency 20055 | -6/Garrison | Garrison Relay disabled 20272 | -6/Garrison | Phase Generator disabled 20343 | -6/Garrison | Triggered checkpoint 20360 | -6/Garrison | Triggered checkpoint 20478 | -6/Garrison | Garrison Relay disabled 20493 | -6/Garrison | Discovered exit to Factory (range 15) 20531 | -6/Garrison | Triggered checkpoint 20584 | -6/Garrison | Discovered exit to Factory (range 10) 20625 | -6/Garrison | Found embedded Infiltrators 20636 | -6/Garrison | Triggered checkpoint 20705 | -6/Garrison | Garrison Relay disabled 20712 | -6/Garrison | Discovered exit to Factory (range 12) 20724 | -6/Garrison | Triggered checkpoint 20752 | -6/Garrison | Garrison Relay disabled 20796 | -6/Garrison | Triggered checkpoint 20834 | -6/Garrison | Triggered checkpoint 20980 | -6/Garrison | Triggered checkpoint 21222 | -6/Garrison | Entered Factory 21222 | -5/Factory | Accompanied by 5 allies 21222 | -5/Factory | Evolved 2 slots: Propulsion x1, Utility x1 21261 | -5/Factory | Identified exit to Upper Caves 21456 | -5/Factory | Fabricated Cmb. Antigrav System? 21635 | -5/Factory | Entered Upper Caves 21637 | -5/Upper Caves | Encountered a Master Thief 21720 | -5/Upper Caves | Discovered new exit (range 3) 21720 | -5/Upper Caves | Identified exit to Upper Caves 21721 | -5/Upper Caves | Entered another Upper Caves area 21734 | -5/Upper Caves | Discovered new exit (range 10) 21735 | -5/Upper Caves | Identified exit to Factory 21781 | -5/Upper Caves | Spotted B-75 Beast 21930 | -5/Upper Caves | Encountered a Master Thief 21934 | -5/Upper Caves | Encountered a Master Thief 21934 | -5/Upper Caves | Discovered new exit (range 14) 21935 | -5/Upper Caves | Encountered a Master Thief 21936 | -5/Upper Caves | Identified exit to Zhirov 21936 | -5/Upper Caves | Entered Zhirov 21936 | -5/Zhirov | Discovered new exit (range 3) 21937 | -5/Zhirov | Identified exit to Proximity Caves 21940 | -5/Zhirov | Met Zhirov 21943 | -5/Zhirov | Learned location of Quarantine (-2) 21943 | -5/Zhirov | Learned location of Testing (-3) 21943 | -5/Zhirov | Learned location of Command (-1) 21945 | -5/Zhirov | Zhirov requested help retrieving the SGEMP Prototype 21949 | -5/Zhirov | Found Alien Artifact 21949 | -5/Zhirov | Identified Integrated Reactor 21949 | -5/Zhirov | Installed Integrated Reactor, increased core energy generation (+10) 21961 | -5/Zhirov | Found Alien Artifact 21985 | -5/Zhirov | Entered Proximity Caves 21988 | -4/Proximity Caves | Acquired the password to a Derelict Tinkerer's latest research 21992 | -4/Proximity Caves | Found Prototype Special Weapon 21999 | -4/Proximity Caves | Learned Research terminal intel 22093 | -4/Proximity Caves | Spotted B-86 Titan 22116 | -4/Proximity Caves | Discovered exit to Factory (range 3) 22116 | -4/Proximity Caves | Entered Factory 22116 | -4/Factory | Evolved 2 slots: Utility x2 22117 | -4/Factory | Identified exit to Armory 22244 | -4/Factory | Identified exit to DSF 22365 | -4/Factory | Repaired Cld. Cesium-ion Thruster 22546 | -4/Factory | Discovered new exit (range 5) 22547 | -4/Factory | Identified exit to Research 22605 | -4/Factory | Sucked down chute 22605 | -4/Factory | Entered Waste 22610 | -4/Waste | 2 allies followed down the chute 22614 | -4/Waste | Spotted C-40 Crusher 22617 | -4/Waste | Spotted C-40 Crusher 22617 | -4/Waste | Spotted C-40 Crusher 22618 | -4/Waste | Spotted C-40 Crusher 22620 | -4/Waste | EMP discharged 22620 | -4/Waste | Discovered new exit (range 16) 22621 | -4/Waste | Spotted C-40 Crusher 22626 | -4/Waste | Identified exit to Factory 22631 | -4/Waste | Entered Factory 22675 | -4/Factory | Found Com. Tesla Bomb Launcher 22750 | -4/Factory | Discovered exit to Research (range 7) 22764 | -4/Factory | Identified exit to Upper Caves 22814 | -4/Factory | Fabricated Field Propulsion Array? 22897 | -4/Factory | Declared boring by mysterious "MATRIX" hacker 22902 | -4/Factory | Found Com. Tesla Bomb Launcher 22908 | -4/Factory | Identified Molecular Deconstructor 22936 | -4/Factory | Fabricated Field Propulsion Array? 22981 | -4/Factory | Unchained authorized (1B-0RG) 23039 | -4/Factory | Entered Armory 23099 | -4/Armory | Found Prototype Launcher 23099 | -4/Armory | Identified Tesla Bomb Launcher 23194 | -4/Armory | Unchained authorized (1B-0RG) 23241 | -4/Armory | Spotted B-86 Titan 23289 | -4/Armory | Search patrols dispatched 23318 | -4/Armory | Discovered new exit (range 3) 23342 | -4/Armory | Identified exit to Lab 23342 | -4/Armory | Entered Lab 23342 | -4/Lab | Discovered exit to Research (range 10) 23345 | -4/Lab | Unable to decrypt terminal 23345 | -4/Lab | Opened the door to a hidden lab 23346 | -4/Lab | Entered Research 23346 | -3/Research | Evolved 2 slots: Propulsion x1, Utility x1 23347 | -3/Research | Loaded intel: 22 terminal locations 23440 | -3/Research | Fabricated Exp. Weapon Shielding (x1) 23493 | -3/Research | Fabricated Exp. Weapon Shielding (x1) 23516 | -3/Research | Build established: Infiltrator-Ninja 23558 | -3/Research | Fabricated Assault Drone Bay (x1) 23622 | -3/Research | Fabricated Assault Drone Bay (x1) 23930 | -3/Research | Repaired Phasing Sabre 23943 | -3/Research | Spotted B-86 Titan 23991 | -3/Research | Spotted B-86 Titan 24112 | -3/Research | Central database locked down 24230 | -3/Research | Discovered new exit (range 14) 24233 | -3/Research | Identified exit to Research 24252 | -3/Research | Spotted B-86 Titan 24442 | -3/Research | Cargo convoy interrupted 24453 | -3/Research | Discovered exit to Research (range 14) 24457 | -3/Research | Identified exit to Testing 24467 | -3/Research | Entered Testing 24516 | -3/Testing | Found Prototype Energy Cannon 24519 | -3/Testing | Identified Imp. Potential Cannon 24537 | -3/Testing | Found Prototype Launcher 24538 | -3/Testing | Identified Z-bomb Delivery System 24549 | -3/Testing | Found Prototype Hackware 24549 | -3/Testing | Identified Exp. System Shield 24659 | -3/Testing | Spotted Striker 24659 | -3/Testing | Spotted Striker 24693 | -3/Testing | Allies destroyed Striker 24702 | -3/Testing | Unchained authorized (DW-4LL) 24737 | -3/Testing | Destroyed Striker 24755 | -3/Testing | P-80 Master assimilated allied Administrator 8a 25092 | -3/Testing | Build established: Hacker-Ninja 25096 | -3/Testing | Spotted DW-4LL 25162 | -3/Testing | System corruption reached 10% 25435 | -3/Testing | Allies destroyed DW-4LL 25476 | -3/Testing | Found Prototype Protection 25476 | -3/Testing | Identified DW-4LL's Blast Wall 25478 | -3/Testing | Found Prototype Ballistic Gun 25478 | -3/Testing | Identified DW-4LL's Slamshotty 25482 | -3/Testing | Found Prototype Processor 25482 | -3/Testing | Identified Exp. Armor Integrity Analyzer 25484 | -3/Testing | Found Prototype Device 25484 | -3/Testing | Identified Exp. Weapon Cycler 25535 | -3/Testing | Spotted Alpha 7 25563 | -3/Testing | Destroyed Alpha 7 25598 | -3/Testing | Stole the SGEMP Prototype 25625 | -3/Testing | Identified Transdimensional Reconstructor 25633 | -3/Testing | Unchained authorized (CL-0N3) 25789 | -3/Testing | K-01 Serf reconstituted as Combat Programmer 25789 | -3/Testing | Spotted Combat Programmer 25865 | -3/Testing | Combat Programmer reconstituted as CL-0N3 25867 | -3/Testing | Spotted CL-0N3 25883 | -3/Testing | Discovered exit to Research (range 11) 25960 | -3/Testing | Rewired PH-WCL19DE9KP 26041 | -3/Testing | W-44 Eye reconstituted as Cetus Guard 26041 | -3/Testing | Spotted Cetus Guard 26153 | -3/Testing | Allies destroyed Cetus Guard 26153 | -3/Testing | Cetus Guard reconstituted as CL-0N3 26533 | -3/Testing | Build established: Scavenger-Gladiator 26564 | -3/Testing | K-01 Serf reconstituted as S7 Guard 26564 | -3/Testing | Spotted S7 Guard 26578 | -3/Testing | Allies destroyed S7 Guard 26578 | -3/Testing | S7 Guard reconstituted as CL-0N3 26593 | -3/Testing | Destroyed CL-0N3 26594 | -3/Testing | Extracted schematics, analyses from CL-0N3's data core 26717 | -3/Testing | First assault squad dispatched 26744 | -3/Testing | Entered Research 26744 | -2/Research | Evolved 2 slots: Utility x2 26864 | -2/Research | Build established: Scavenger-Sprinter 26873 | -2/Research | Repaired Cld. Gravmag System 27103 | -2/Research | Discovered new exit (range 9) 27123 | -2/Research | Identified exit to Access 27129 | -2/Research | Warped through subspace 27176 | -2/Research | Spotted B-90 Cyclops 27285 | -2/Research | Found Adv. Force Booster 27383 | -2/Research | Spotted B-90 Cyclops 27394 | -2/Research | Identified exit to Quarantine 27408 | -2/Research | Entered Quarantine 27408 | -2/Quarantine | Accompanied by 1 ally 27559 | -2/Quarantine | Cryocooling Duct disabled 27574 | -2/Quarantine | Ambient heat levels rising (+20) 27574 | -2/Quarantine | Non-combat units ordered to evacuate 27583 | -2/Quarantine | Found Alien Reactor 27588 | -2/Quarantine | Cryocooling Duct disabled 27603 | -2/Quarantine | Ambient heat levels rising (+20) 27603 | -2/Quarantine | Combat units ordered to evacuate 27636 | -2/Quarantine | Discovered exit to Access (range 12) 27668 | -2/Quarantine | Found Alien Artifact 27703 | -2/Quarantine | Quarantine Guard activated 27821 | -2/Quarantine | Spotted Quarantine Guard 27836 | -2/Quarantine | Spotted Quarantine Guard 27842 | -2/Quarantine | Destroyed Quarantine Guard 27856 | -2/Quarantine | Destroyed Quarantine Guard 27950 | -2/Quarantine | Destroyed Quarantine Guard 27964 | -2/Quarantine | Spotted Quarantine Guard 27966 | -2/Quarantine | Destroyed Quarantine Guard 27981 | -2/Quarantine | Spotted Quarantine Guard 27984 | -2/Quarantine | Destroyed Quarantine Guard 28359 | -2/Quarantine | Found Prototype Device 28376 | -2/Quarantine | Identified Exp. Terrain Scanner 28407 | -2/Quarantine | Learned Section 7 security intel 28439 | -2/Quarantine | Identified exit to Protoforge 28439 | -2/Quarantine | Identified exit to Section 7 28441 | -2/Quarantine | Learned location of Section 7 (-2) 28441 | -2/Quarantine | Destroyed Quarantine Guard 28444 | -2/Quarantine | Learned 8 Research zone layouts 28467 | -2/Quarantine | Spotted Quarantine Guard 28475 | -2/Quarantine | Learned 8 Access zone layouts 28537 | -2/Quarantine | Destroyed Quarantine Guard 28559 | -2/Quarantine | Spotted Quarantine Guard 28566 | -2/Quarantine | Destroyed Quarantine Guard 28569 | -2/Quarantine | Spotted Quarantine Guard 28573 | -2/Quarantine | Destroyed Quarantine Guard 28726 | -2/Quarantine | Found Alien Artifact 28738 | -2/Quarantine | Found Alien Artifact 28738 | -2/Quarantine | Identified Dimensional Node Initializer 28738 | -2/Quarantine | Initialized slip node 28742 | -2/Quarantine | Found Dimensional Node Initializer 28745 | -2/Quarantine | Found Transdimensional Reconstructor 28820 | -2/Quarantine | Found Alien Impact Weapon 28820 | -2/Quarantine | Identified Core Stripper 28838 | -2/Quarantine | Spotted Fortress 28906 | -2/Quarantine | Destroyed Fortress 28912 | -2/Quarantine | Found Prototype Device 28912 | -2/Quarantine | Identified Exp. Force Field 28915 | -2/Quarantine | Found Prototype Device 28915 | -2/Quarantine | Identified Thermal Barrier 28917 | -2/Quarantine | Found Prototype Device 28917 | -2/Quarantine | Identified Exp. EM Shield 28921 | -2/Quarantine | Found Prototype Reactor 28921 | -2/Quarantine | Identified Vortex Chain Reactor 29006 | -2/Quarantine | Spotted Quarantine Guard 29111 | -2/Quarantine | Found Transdimensional Reconstructor 29364 | -2/Quarantine | Spotted Quarantine Guard 29365 | -2/Quarantine | Entered Protoforge 29507 | -2/Protoforge | Discovered exit to Access (range 5) 29508 | -2/Protoforge | Initialized slip node 29689 | -2/Protoforge | Spotted Hotshot 29710 | -2/Protoforge | Found Prototype Protection 29710 | -2/Protoforge | Identified Cep. Core Shell 29751 | -2/Protoforge | Superfortress began startup sequence 29812 | -2/Protoforge | Found Prototype Device 29812 | -2/Protoforge | Identified Crosscalibrator 29818 | -2/Protoforge | Spotted Immortal 29819 | -2/Protoforge | Spotted Immortal 29836 | -2/Protoforge | Destroyed Immortal 29850 | -2/Protoforge | Destroyed Immortal 29854 | -2/Protoforge | Spotted Decapitator 29854 | -2/Protoforge | Spotted Decapitator 29854 | -2/Protoforge | Spotted Decapitator 29860 | -2/Protoforge | Destroyed Decapitator 29865 | -2/Protoforge | First assault squad dispatched 29865 | -2/Protoforge | Destroyed Decapitator 29872 | -2/Protoforge | Destroyed Decapitator 29877 | -2/Protoforge | Found Prototype Launcher 29877 | -2/Protoforge | Identified Cep. Concussive Dispersal Blaster 29900 | -2/Protoforge | Found Cep. Reaction Jets 29964 | -2/Protoforge | Forge Plexus network access discovered 29999 | -2/Protoforge | Found Cep. Zero-point Core 30099 | -2/Protoforge | Found Exp. Targeting Computer 30101 | -2/Protoforge | Found Exp. EM Disruption Field 30107 | -2/Protoforge | Found Cep. Zero-point Core 30206 | -2/Protoforge | Spotted Decapitator 30206 | -2/Protoforge | Spotted Decapitator 30206 | -2/Protoforge | Spotted V924-t 30206 | -2/Protoforge | Spotted V915-e 30206 | -2/Protoforge | Spotted Decapitator 30211 | -2/Protoforge | Destroyed Decapitator 30229 | -2/Protoforge | Found Faulty Cep. Miniperforator 30230 | -2/Protoforge | Found Cep. Plasma Driver 30231 | -2/Protoforge | Found Cep. Plasma Driver 30235 | -2/Protoforge | Found Cep. Miniperforator 30254 | -2/Protoforge | Found Exp. Jetlance 30257 | -2/Protoforge | Found Cep. Lightning Penetrator 30263 | -2/Protoforge | Found Cep. Plasma Driver 30326 | -2/Protoforge | Found Cep. Plasma Driver 30330 | -2/Protoforge | Found Exp. Jetlance 30397 | -2/Protoforge | Destroyed Decapitator 30511 | -2/Protoforge | Spotted Immortal 30539 | -2/Protoforge | Destroyed Immortal 30559 | -2/Protoforge | Spotted V071-i 30562 | -2/Protoforge | Destroyed V071-i 30565 | -2/Protoforge | Found Cep. Antigrav Storage Unit 30567 | -2/Protoforge | Found Cep. NT7 Matterbank 30569 | -2/Protoforge | Found Cep. Chromion Battery 30572 | -2/Protoforge | Found Cep. Chromion Battery 30573 | -2/Protoforge | Found Cep. NT7 Matterbank 30730 | -2/Protoforge | Found Femtoactuators 30735 | -2/Protoforge | Found Cep. Weapon Articulator 30742 | -2/Protoforge | Found Cep. Melee Reflex Suite 30759 | -2/Protoforge | Found Femtoactuators 30861 | -2/Protoforge | Found Exp. Force Booster 30952 | -2/Protoforge | Spotted AP7-3 30956 | -2/Protoforge | Spotted AP7-3 30961 | -2/Protoforge | Destroyed AP7-3 30967 | -2/Protoforge | Destroyed AP7-3 30971 | -2/Protoforge | Found Prototype Device 30971 | -2/Protoforge | Identified Exp. ECM Suite 30978 | -2/Protoforge | Found Prototype Energy Gun 30978 | -2/Protoforge | Identified Enh. Gamma Rifle 30996 | -2/Protoforge | Found Exp. Target Analyzer 31022 | -2/Protoforge | Found Faulty Cep. Core Analysis Suite 31026 | -2/Protoforge | Found Cep. Core Analysis Suite 31032 | -2/Protoforge | Found Faulty Cep. Cloak Mesh 31035 | -2/Protoforge | Found Faulty Cep. Cloak Mesh 31319 | -2/Protoforge | Build established: Sprinter 31466 | -2/Protoforge | Found Cep. Thermoelectric Network 31528 | -2/Protoforge | Additional patrols dispatched to research labs 31541 | -2/Protoforge | Found Cep. Nanofilaments [Tensile] 31541 | -2/Protoforge | Installed Cep. Nanofilaments [Tensile], 3 resistances modified: KI +20%, TH -10%, I +20% 31639 | -2/Protoforge | Spotted Decapitator 31639 | -2/Protoforge | Spotted Decapitator 31646 | -2/Protoforge | Destroyed Decapitator 31648 | -2/Protoforge | Destroyed Decapitator 31666 | -2/Protoforge | Found Cep. EMP Blanket Launcher 31674 | -2/Protoforge | Found Cep. EMP Blanket Launcher 31744 | -2/Protoforge | Found Cep. RG22 Armor 31795 | -2/Protoforge | Found Cep. Combat Aerolev Unit 31808 | -2/Protoforge | System corruption reached 10% 31873 | -2/Protoforge | Found Cep. Network Penetrator 31878 | -2/Protoforge | Spotted V779-y 31882 | -2/Protoforge | Spotted V969-z 31882 | -2/Protoforge | Spotted V220-w 31882 | -2/Protoforge | Spotted V926-u 31884 | -2/Protoforge | Warped through subspace to slip node 31887 | -2/Protoforge | Found Exp. Active Sensor Suite 31890 | -2/Protoforge | Entered Access 31890 | -1/Access | Evolved 2 slots: Utility x2 31891 | -1/Access | Delivered the SGEMP Prototype to Zhirov 31891 | -1/Access | Zhirov transferred Access data 31892 | -1/Access | Loaded intel: 123 machine locations 31892 | -1/Access | Loaded intel: 99 trap records 31892 | -1/Access | Identified exit to Surface 31892 | -1/Access | Discovered exit to Surface (range 102) 31892 | -1/Access | Identified exit to Command 31892 | -1/Access | Discovered exit to Command (range 193) 31918 | -1/Access | Identified Core Reset Matrix 31918 | -1/Access | Identified Subatomic Replicator 31918 | -1/Access | Used Core Reset Matrix 31921 | -1/Access | Attacked by Zhirov 31923 | -1/Access | Destroyed Svarog 31930 | -1/Access | Destroyed Zhirov 31932 | -1/Access | Destroyed Perun 31936 | -1/Access | Found Transdimensional Reconstructor 31944 | -1/Access | Found Prototype Device 31944 | -1/Access | Identified Exp. Transmission Jammer 31949 | -1/Access | Found Unknown Protection 31949 | -1/Access | Identified Adv. Powered Armor 31955 | -1/Access | Found Prototype Hackware 31957 | -1/Access | Identified Deep Network Scanner 31960 | -1/Access | Found Deep Network Scanner 31964 | -1/Access | Found Prototype Hackware 31965 | -1/Access | Identified Quantum Router 31968 | -1/Access | Found Zhirov Special 32140 | -1/Access | First assault squad dispatched 32175 | -1/Access | Unchained authorized (V4-D3R) 32209 | -1/Access | Discovered exit to Command (range 8) 32220 | -1/Access | Build established: Wizard-Ninja 32224 | -1/Access | Fabricated Exp. Utility Shielding? 32281 | -1/Access | Spotted V4-D3R 32311 | -1/Access | Destroyed V4-D3R 32312 | -1/Access | Found Femtoactuators 32313 | -1/Access | Found Prototype Special Weapon 32354 | -1/Access | Destroyed 8 combat bots 32434 | -1/Access | Identified V4-D3R's Forcegen 32645 | -1/Access | Build established: Hacker-Ninja 32669 | -1/Access | Entered Command 32747 | -1/Command | Spotted M Guard 32748 | -1/Command | Spotted Combat Programmer 32753 | -1/Command | Destroyed Combat Programmer 32753 | -1/Command | Spotted Combat Programmer 32765 | -1/Command | Destroyed Combat Programmer 32767 | -1/Command | Spotted M Guard 32796 | -1/Command | Destroyed M Guard 32797 | -1/Command | Destroyed M Guard 32797 | -1/Command | All MAIN.C guards destroyed 32888 | -1/Command | Met MAIN.C 32888 | -1/Command | 0b10 Conduit disabled 32908 | -1/Command | Destroyed MAIN.C Shell 32910 | -1/Command | MAIN.C activated Command garrisons 32973 | -1/Command | Destroyed MAIN.C 33000 | -1/Command | Lost 12 parts (5n4u3w) 33040 | -1/Command | Phase Generator disabled 33251 | -1/Command | Build established: Alien-Skirmisher 33970 | -1/Command | Discovered exit to Surface (range 35) 33970 | -1/Command | Discovered exit to Surface (range 90) 33970 | -1/Command | Extracted map data and part IDs from MAIN.C's data core 33993 | -1/Command | Found Exp. Powered Armor 33995 | -1/Command | Found Centrium Heavy Armor Plating 34015 | -1/Command | Found Zero-point Reactor 34099 | -1/Command | Found Exp. System Purifier 34272 | -1/Command | Build established: Scavenger-Skirmisher 34395 | -1/Command | Found Corrupted AEGIS Remote Shield 34414 | -1/Command | Found Corrupted AEGIS Remote Shield 34415 | -1/Command | System corruption reached 10% 35367 | -1/Command | Found Exp. Weapon Cycler 35369 | -1/Command | Found Exp. Focal Shield 35372 | -1/Command | Found Hvy. Regenerative Plating 35389 | -1/Command | Found Cld. Nova Cannon 35408 | -1/Command | Build established: Scavenger-Assassin 35701 | -1/Command | Found Corrupted Hvy. Regenerative Plating 35760 | -1/Command | Build established: Scavenger-Skirmisher 35985 | -1/Command | Found Exp. Targeting Computer 36423 | -1/Command | Found Zero-point Reactor 36467 | -1/Command | Used Subatomic Replicator to replicate Cep. Plasma Driver 37259 | -1/Command | Warped through subspace to slip node 37259 | -1/Command | Discovered new exit (range 5) 37262 | -1/Command | Found Spectral Analyzer 37266 | -1/Command | Identified exit to Access_0 37269 | -1/Command | Entered Access_0 37270 | -1/Access_0 | Sensed 4 artifacts in vicinity 37272 | -1/Access_0 | Met Architect 37280 | -1/Access_0 | Destroyed A8 37283 | -1/Access_0 | Architect warped through subspace 37317 | -1/Access_0 | Architect warped through subspace 37350 | -1/Access_0 | Architect warped through subspace 37363 | -1/Access_0 | Found Exp. Powered Armor 37367 | -1/Access_0 | Found Exp. Powered Armor 37379 | -1/Access_0 | Architect warped through subspace 37401 | -1/Access_0 | Architect warped through subspace 37425 | -1/Access_0 | Architect warped through subspace 37446 | -1/Access_0 | Architect warped through subspace 37461 | -1/Access_0 | Architect warped through subspace 37479 | -1/Access_0 | Architect warped through subspace 37494 | -1/Access_0 | Architect warped through subspace 37499 | -1/Access_0 | Found Exp. Phase Shifter 37512 | -1/Access_0 | Architect warped through subspace 37532 | -1/Access_0 | Architect warped through subspace 37560 | -1/Access_0 | Architect warped through subspace 37587 | -1/Access_0 | A6 warped into view 37598 | -1/Access_0 | Core integrity fell below 50% 37599 | -1/Access_0 | Architect warped through subspace 37608 | -1/Access_0 | Destroyed A6 37628 | -1/Access_0 | Architect warped through subspace 37654 | -1/Access_0 | Architect warped through subspace 37693 | -1/Access_0 | Architect warped through subspace 37702 | -1/Access_0 | Subspace Access Node disabled 37727 | -1/Access_0 | Architect warped through subspace 37755 | -1/Access_0 | Lost 3 parts (1p2u) 37757 | -1/Access_0 | Architect warped through subspace 37769 | -1/Access_0 | Subspace Access Node disabled 37777 | -1/Access_0 | Architect warped through subspace 37795 | -1/Access_0 | Architect warped through subspace 37804 | -1/Access_0 | Found Exp. Targeting Computer 37810 | -1/Access_0 | Architect warped through subspace 37835 | -1/Access_0 | Architect warped through subspace 37836 | -1/Access_0 | Subspace Access Node disabled 37869 | -1/Access_0 | Architect warped through subspace 37875 | -1/Access_0 | Architect warped through subspace 37893 | -1/Access_0 | A5 warped into view 37895 | -1/Access_0 | Subspace Access Node disabled 37910 | -1/Access_0 | Destroyed A5 37912 | -1/Access_0 | Core integrity fell below 20% 37931 | -1/Access_0 | Destroyed Architect 37932 | -1/Access_0 | Architect triggered a singularity event 37932 | -1/Access_0 | Released all parts (20) 37932 | -1/Access_0 | Extracted unknown sensor trigger ID from Architect's data core 37934 | -1/Access_0 | Found Hpw. Transdimensional Reconstructor 37934 | -1/Access_0 | Warped through subspace to slip node 37934 | -1/Access_0 | Discovered exit to Surface (range 8) 37938 | *** | Escaped singularity! Last Messages --------------- 37932_ Released Cep. Antigrav Storage Unit. 37932_ Released Cep. Core Analysis Suite. 37932_ Released Biometal Heavy Treads. 37932_ Released Enh. Armored Heavy Treads. 37932_ Released Cep. Zero-point Core. 37932_ Released Adv. Terrain Scan Processor. 37932_ Released Spectral Analyzer. 37932_ Released Enh. Armored Heavy Treads. 37932_ Released Cep. Chromion Battery. 37932_ Acquired data core, extracted unknown sensor trigger ID. 37933_ A0_COM: 10. 37933_ Acquired 192 matter. 37934_ A0_COM: 9. 37934_ Acquired Hpw. Transdimensional Reconstructor. 37934_ Warped through subspace, drawn to slip node. 37934_ EXIT=FOUND: SURFACE 37935_ A0_COM: 8. 37936_ A0_COM: 7. 37937_ A0_COM: 6. 37938_ A0_COM: 5. Map ----- +----------------------------------------------------+ | | | | | | | | | | | | | | | | | | | | | | | | | | | | | | | | | ?????????????????????????????????????????????????? | | ?????????????????????????????????????????????????? | | ?????????????????????????????????????????????????? | | ?????????????????????????????????????????????????? | | ?????????????????????????????????????????????????? | | ?????????????????????????????????????????????????? | | ????????????????????????###??????????????????????? | | ???????????????????????## ##?????????????????????? | | ???????????????????????# #?????????????????????? | | ???????????????????????# @ #?????????????????????? | | ??????????????????????## #?????????????????????? | | ??????????????????????# #?????????????????????? | | ??????????????????????# ##?????????????????????? | | ??????????????????????## #?????????????????????? | | ??????????????????????# #?????????????????????? | | ??????????????????????# ##?????????????????????? | | ??????????????????????# < #?????????????????????? | | ??????????????????????# ##?????????????????????? | | ??????????????????????## #??????????????????????? | | ???????????????????????####??????????????????????? | | ?????????????????????????????????????????????????? | | ?????????????????????????????????????????????????? | | ?????????????????????????????????????????????????? | | ?????????????????????????????????????????????????? | | ?????????????????????????????????????????????????? | | ?????????????????????????????????????????????????? | | ?????????????????????????????????????????????????? | | ?????????????????????????????????????????????????? | | ?????????????????????????????????????????????????? | | ?????????????????????????????????????????????????? | | ?????????????????????????????????????????????????? | | ?????????????????????????????????????????????????? | | ?????????????????????????????????????????????????? | | ?????????????????????????????????????????????????? | +----------------------------------------------------+ Best States ------------- Heat Dissipation 84 Coolant Potential 120 Energy Generation 71 Energy Capacity 2120 Matter Stores 800 Matter Capacity 800 Sight Range 24 Robot Scan Range 20 Terrain Scan Range 24 Terrain Scan Density 210 Jamming Range 22 Cloak Strength 9 Power Amplification 30 Additional Mass Support 25 Base Temperature (-) 200 EM Shielding 4 Corruption Containment 12 Corruption Block 20 Armor Coverage 2400 Resistance: KI 30 Resistance: TH 15 Resistance: EX 75 Resistance: I 20 Core Shielding 90 Propulsion Shielding 66 Utility Shielding 90 Weapon Shielding 90 Weapon Cycling 30 Melee Speed Boost 50 Phase Shifting 20 Evasion (%) 77 Targeting Accuracy 30 Core Analysis 16 Armor Integrity Analysis 50 Recoil Reduction 8 Force Boost 50 Salvage Targeting 1 Offensive Hacking 100 Defensive Hacking 25 Relay Coupler Types 2 Relay Coupler Value 37 Authchip Count 4 Item Schematics ----------------- Exp. Utility Shielding | -1/Access | Hacked Robot Schematics ------------------ None Fabricated ------------ Cmb. Antigrav System | x2 | -7/Factory Cmb. Antigrav System | x2 | -7/Factory Cmb. Antigrav System | x2 | -5/Factory | Authchip Field Propulsion Array | x1 | -4/Factory | Authchip Field Propulsion Array | x1 | -4/Factory | Authchip Exp. Weapon Shielding | x1 | -3/Research | Authchip Exp. Weapon Shielding | x1 | -3/Research | Authchip Assault Drone Bay | x1 | -3/Research | Authchip Assault Drone Bay | x1 | -3/Research | Authchip Exp. Utility Shielding | x1 | -1/Access Repaired ---------- Lgt. Treads | 19% | -9/Materials Lgt. Armor Plating | 11% | -9/Materials Lgt. Treads | 65% | -9/Materials | Corrupted Hvy. Assault Rifle | 60% | -9/Materials Biometal Medium Treads | 40% | -8/Materials Biometal Medium Treads | 60% | -8/Materials Biometal Medium Treads | 39% | -8/Materials Biometal Medium Treads | 31% | -8/Materials Exp. Weapon Shielding | 58% | -8/Materials Biometal Medium Treads | 36% | -8/Materials Biometal Medium Treads | 22% | -7/Factory Cld. Cesium-ion Thruster | 17% | -4/Factory Phasing Sabre | 18% | -3/Research Cld. Gravmag System | 4% | -2/Research Studied --------- None Alien Tech Used ----------------- Integrated Reactor Transdimensional Reconstructor Dimensional Node Initializer Core Stripper Concept Nanofilaments [Tensile] Core Reset Matrix Subatomic Replicator High-powered Transdimensional Reconstructor Achievements -------------- Serial Killer Challenges ------------ None Game ------ Seed StasisExperimentalBox Manual? 0 Play Time 13:15:03 Cumulative 1841.3 hours Start 2026.09.18 @ 11:48:12 End 2026.09.20 @ 02:42:18 Sessions 5 Manual Loads 0 Difficulty Rogue Special Mode None Game No. 554 Rogue 546 Adventurer 4 Explorer 4 Win Type 6 Total 78 Types 32/12/6/4/2/5/10/2/3/2 Lore% 98 Gallery% 96 Achievement% 94 Wizard Run 0 Options --------- Layout 0 ASCII 0 Keyboard 0 Movement Numpad Keybinds 0 Fullscreen 2 Font 18/SmallcapsGlow Map View 76x50 Zoom Use 0% Tactical HUD 1 Map Filters NONE Filters NONE Steam 1 RUN: ee1b8ebf-0f0c-4fe7-8531-83d84f5fe188